{"text_format":"1","workbook":"xlsx","n_sheets":2,"sheets":["Cerere de Finanţare","Asociati"],"not_rendered":{"charts":0,"images":1,"macros":1,"external_links":0,"defined_names":1,"comments":0,"pivot_tables":0},"unopened":[],"bounds":{"document_bytes":16777216,"sheet_cells":100000,"rows_first":2000,"rows_last":500,"rows_between":2000,"halvings":0,"cell_chars":16384,"cell_head_chars":4096},"cells_cut":0,"cells_raw":0,"read":"whole","date_system":"1900"}

{"sheet":"Cerere de Finanţare","index":0,"n_rows":546,"n_cols":58,"rows_kept":546,"cut":false,"hidden":false,"merged":[[462,0,462,2],[464,0,464,2],[463,0,463,2],[463,3,463,61],[471,3,471,61],[472,0,472,2],[472,3,472,61],[474,0,474,2],[474,3,474,61],[473,0,473,2],[473,3,473,61],[468,3,468,61],[469,3,469,61],[218,39,218,51],[219,39,219,51],[223,0,223,61],[225,2,225,28],[225,32,225,57],[226,32,226,57],[226,2,226,28],[451,1,451,61],[399,10,400,30],[430,0,430,9],[430,10,430,30],[430,31,430,38],[430,39,430,48],[430,49,430,61],[467,3,467,61],[406,39,406,48],[406,49,406,61],[407,31,407,38],[446,1,446,60],[543,0,543,61],[545,0,545,61],[551,0,551,61],[544,0,544,61],[525,51,525,61],[539,18,539,50],[539,51,539,61],[540,0,542,17],[540,18,540,50],[540,51,540,61],[541,18,541,50],[541,51,541,61],[542,18,542,50],[542,51,542,61],[534,18,534,50],[534,51,534,61],[535,18,535,50],[535,51,535,61],[536,18,536,50],[536,51,536,61],[537,18,537,50],[537,51,537,61],[538,18,538,50],[538,51,538,61],[528,18,528,50],[530,0,530,17],[530,18,530,50],[530,51,530,61],[529,18,529,50],[529,51,529,61],[525,0,525,50],[520,51,520,61],[521,51,521,61],[514,18,514,50],[517,18,517,50],[514,51,514,61],[515,51,515,61],[516,51,516,61],[517,51,517,61],[518,0,521,17],[520,18,520,50],[521,18,521,50],[531,0,533,17],[531,18,531,50],[531,51,531,61],[532,18,532,50],[532,51,532,61],[533,18,533,50],[533,51,533,61],[515,18,516,30],[515,31,515,43],[515,44,515,50],[516,31,516,43],[516,44,516,50],[526,18,526,50],[526,51,526,61],[527,18,527,50],[527,51,527,61],[522,18,522,50],[522,51,522,61],[528,51,528,61],[522,0,523,17],[523,18,523,50],[503,2,503,41],[504,2,504,41],[478,0,478,2],[478,5,478,61],[482,3,482,61],[483,0,483,2],[483,3,483,61],[484,0,484,2],[484,3,484,61],[485,3,485,61],[479,0,479,2],[479,3,479,61],[480,3,480,61],[496,42,496,51],[496,52,496,61],[497,0,497,1],[493,0,493,1],[493,2,493,26],[493,27,493,41],[494,42,494,51],[494,52,494,61],[481,3,481,61],[482,0,482,2],[494,0,494,1],[494,2,494,26],[494,27,494,41],[194,11,194,16],[194,19,195,21],[194,22,195,27],[194,29,195,36],[207,52,207,59],[208,4,208,6],[208,8,208,10],[208,22,209,27],[208,29,209,36],[208,38,209,49],[452,1,452,61],[453,1,453,61],[454,1,454,61],[448,1,448,61],[319,31,319,35],[319,36,319,42],[319,43,319,50],[319,51,319,55],[319,56,319,61],[408,0,408,9],[406,31,406,38],[202,25,202,50],[203,3,203,17],[203,25,203,50],[207,4,207,16],[207,19,207,21],[207,22,207,27],[207,29,207,36],[207,38,207,49],[208,11,208,16],[208,19,209,21],[332,56,332,61],[490,0,490,61],[491,52,491,61],[491,42,491,51],[491,0,491,41],[492,42,492,51],[492,52,492,61],[492,2,492,26],[492,0,492,1],[492,27,492,41],[485,0,485,2],[481,0,481,2],[480,0,480,2],[470,3,470,61],[471,0,471,2],[475,0,475,2],[475,3,475,61],[476,0,476,2],[476,3,476,61],[477,0,477,2],[477,3,477,61],[193,4,193,16],[193,19,193,21],[499,0,499,1],[499,2,499,41],[499,42,499,51],[499,52,499,61],[486,0,486,31],[486,42,486,53],[487,1,487,32],[487,42,487,51],[456,0,456,61],[457,0,457,61],[458,1,458,35],[459,0,459,61],[460,1,460,60],[461,0,461,61],[462,3,462,61],[464,3,464,61],[465,0,465,61],[466,3,466,61],[493,42,493,51],[493,52,493,61],[442,1,442,61],[441,1,441,61],[439,1,439,61],[440,1,440,61],[331,56,331,61],[332,0,332,30],[332,31,332,35],[332,36,332,42],[332,43,332,50],[332,51,332,55],[5,37,6,61],[22,23,22,30],[30,1,30,60],[38,1,47,60],[146,41,146,59],[148,1,148,28],[148,29,148,36],[148,39,148,46],[178,3,178,17],[178,25,178,50],[156,1,156,20],[156,23,156,40],[156,43,156,59],[157,1,157,10],[157,11,157,17],[157,30,157,33],[158,11,158,28],[158,30,158,33],[158,35,158,38],[73,40,73,49],[73,51,73,59],[65,51,65,59],[79,1,83,14],[51,0,51,13],[177,25,177,50],[134,1,136,30],[104,3,104,11],[104,12,104,59],[105,3,105,11],[105,12,105,59],[122,1,126,60],[120,1,120,3],[447,1,447,60],[445,1,445,60],[335,43,335,50],[335,51,335,55],[335,56,335,61],[334,51,334,55],[334,56,334,61],[334,0,334,30],[335,0,335,30],[336,0,336,30],[337,0,337,30],[404,31,404,38],[404,39,404,48],[404,49,404,61],[405,31,405,38],[405,39,405,48],[405,49,405,61],[408,31,408,38],[408,39,408,48],[408,49,408,61],[409,31,409,38],[409,39,409,48],[407,39,407,48],[407,49,407,61],[352,39,352,48],[352,49,352,61],[338,0,338,30],[338,56,338,61],[338,51,338,55],[338,43,338,50],[338,36,338,42],[338,31,338,35],[407,0,407,9],[353,0,353,9],[353,10,353,30],[353,31,353,38],[409,49,409,61],[409,0,409,9],[337,31,337,35],[326,0,326,30],[326,31,326,35],[326,36,326,42],[326,43,326,50],[326,51,326,55],[326,56,326,61],[337,36,337,42],[337,43,337,50],[337,51,337,55],[337,56,337,61],[336,31,336,35],[336,36,336,42],[336,43,336,50],[336,51,336,55],[333,31,333,35],[352,0,352,9],[352,10,352,30],[352,31,352,38],[327,56,327,61],[328,31,328,35],[328,36,328,42],[328,43,328,50],[328,51,328,55],[328,56,328,61],[329,31,329,35],[329,36,329,42],[329,43,329,50],[329,51,329,55],[333,0,333,30],[333,36,333,42],[333,43,333,50],[333,51,333,55],[333,56,333,61],[334,31,334,35],[406,0,406,9],[318,43,318,50],[324,56,324,61],[319,0,319,30],[321,0,321,30],[320,0,320,30],[322,0,322,30],[324,31,324,35],[324,36,324,42],[324,43,324,50],[324,51,324,55],[318,51,318,55],[318,56,318,61],[322,31,322,35],[322,36,322,42],[322,43,322,50],[322,51,322,55],[325,36,325,42],[325,43,325,50],[325,51,325,55],[325,56,325,61],[305,0,305,30],[305,31,305,35],[305,36,305,42],[305,43,305,50],[305,51,305,55],[305,56,305,61],[306,0,306,30],[306,31,306,35],[306,36,306,42],[306,43,306,50],[306,51,306,55],[306,56,306,61],[317,31,317,35],[317,36,317,42],[317,43,317,50],[317,51,317,55],[317,56,317,61],[316,0,316,30],[316,31,316,35],[316,36,316,42],[316,43,316,50],[316,51,316,55],[316,56,316,61],[312,0,312,30],[312,31,312,35],[312,36,312,42],[312,43,312,50],[312,51,312,55],[307,0,307,30],[307,31,307,35],[307,36,307,42],[307,43,307,50],[303,0,303,30],[303,31,303,35],[303,36,303,42],[303,43,303,50],[303,51,303,55],[303,56,303,61],[304,0,304,30],[304,31,304,35],[304,36,304,42],[304,43,304,50],[304,51,304,55],[304,56,304,61],[165,26,166,36],[165,37,166,47],[165,48,165,58],[166,48,166,58],[167,48,169,58],[168,4,168,14],[168,17,168,24],[168,27,168,35],[168,37,168,47],[182,4,182,16],[182,19,182,21],[182,22,182,27],[182,29,182,36],[182,38,182,49],[171,3,172,59],[235,0,266,60],[200,20,200,50],[188,3,188,11],[188,25,188,50],[189,3,189,17],[302,43,302,50],[302,51,302,55],[302,56,302,61],[299,0,299,30],[299,31,299,35],[299,36,299,42],[299,43,299,50],[299,51,299,55],[299,56,299,61],[301,31,301,35],[301,36,301,42],[301,43,301,50],[301,51,301,55],[301,56,301,61],[300,31,300,35],[300,36,300,42],[300,43,300,50],[300,51,300,55],[302,0,302,30],[302,31,302,35],[302,36,302,42],[297,0,297,30],[297,31,297,35],[297,36,297,42],[297,43,297,50],[297,51,297,55],[297,56,297,61],[295,0,295,30],[287,31,290,61],[290,0,290,17],[290,18,290,19],[292,0,293,55],[292,56,292,61],[293,56,293,61],[294,0,294,61],[295,31,295,35],[295,36,295,42],[295,43,295,50],[296,31,296,50],[296,51,296,61],[158,1,158,9],[158,40,158,43],[158,45,158,48],[193,22,193,27],[193,29,193,36],[193,38,193,49],[57,16,57,26],[57,28,57,38],[51,28,51,41],[22,0,22,22],[23,0,23,8],[24,0,24,22],[32,1,32,17],[31,1,31,60],[33,1,36,60],[81,40,81,49],[81,51,81,59],[94,1,94,23],[57,51,57,59],[73,16,73,26],[73,28,73,38],[103,3,103,11],[103,12,103,59],[65,16,65,26],[65,28,65,38],[65,40,65,49],[51,14,51,26],[53,1,53,14],[53,16,53,26],[119,13,119,19],[106,3,106,11],[106,12,106,59],[12,31,16,31],[49,2,49,20],[50,0,50,16],[19,6,19,9],[13,10,18,12],[19,13,19,15],[19,21,19,24],[20,21,20,24],[53,28,53,38],[53,40,53,49],[13,6,18,7],[0,6,0,61],[1,6,1,61],[7,0,7,35],[8,0,8,35],[10,8,10,35],[10,0,10,5],[3,43,3,61],[12,0,12,5],[5,0,6,35],[16,0,16,5],[7,37,8,61],[16,37,24,61],[21,10,21,21],[10,37,10,61],[11,37,12,61],[21,0,21,8],[18,31,18,35],[19,31,19,35],[20,31,20,35],[12,32,16,32],[12,33,16,33],[12,34,16,34],[12,35,16,35],[17,31,17,35],[12,8,12,9],[13,8,18,9],[12,10,12,12],[89,28,89,38],[89,40,89,49],[89,51,89,59],[89,16,89,26],[71,1,75,14],[129,1,131,30],[129,42,129,59],[131,42,131,59],[129,32,129,40],[131,32,131,40],[87,1,91,14],[119,1,119,3],[119,5,119,11],[37,1,37,23],[28,1,28,8],[25,0,25,17],[26,0,26,61],[28,11,28,61],[29,11,29,61],[57,40,57,49],[63,1,67,14],[55,1,59,14],[53,51,53,59],[51,42,51,60],[81,16,81,26],[81,28,81,38],[113,3,113,11],[113,12,113,59],[114,3,114,11],[114,12,114,59],[115,3,115,11],[115,12,115,59],[116,3,116,11],[116,12,116,59],[137,1,137,19],[139,0,139,61],[140,0,140,61],[141,1,141,19],[142,1,143,16],[142,20,142,40],[142,44,142,59],[143,20,143,40],[143,44,143,59],[134,32,134,40],[134,42,134,59],[136,32,136,40],[136,42,136,59],[132,1,132,19],[148,49,148,56],[150,1,150,17],[150,18,150,31],[150,49,150,56],[152,1,152,24],[152,25,152,31],[152,49,152,56],[219,21,219,33],[144,2,144,15],[144,20,144,40],[144,44,144,59],[217,1,217,10],[216,37,216,45],[213,1,213,38],[214,1,214,20],[214,23,214,40],[214,43,214,59],[215,1,215,20],[215,23,215,40],[215,43,215,59],[216,1,216,10],[217,13,217,28],[216,31,216,34],[216,13,216,28],[217,31,217,34],[217,37,217,46],[216,55,216,59],[216,49,216,52],[217,49,217,52],[217,55,217,59],[160,43,160,59],[162,1,162,59],[276,15,276,19],[276,20,276,42],[276,43,276,49],[276,50,276,56],[268,0,268,61],[218,1,218,14],[218,21,218,33],[269,2,269,61],[273,1,274,14],[273,15,273,56],[273,57,274,60],[274,15,274,19],[274,20,274,42],[274,43,274,49],[155,23,155,40],[155,43,155,59],[163,1,163,59],[165,3,166,14],[165,15,166,25],[193,52,193,59],[194,4,194,6],[194,8,194,10],[183,22,184,27],[183,29,184,36],[183,38,184,49],[183,52,184,59],[184,4,184,6],[184,8,184,10],[184,11,184,16],[182,52,182,59],[174,0,174,61],[177,3,177,11],[154,1,154,42],[155,1,155,20],[158,51,158,56],[159,40,159,42],[159,47,159,55],[160,1,160,13],[160,16,160,27],[160,29,160,41],[189,25,189,50],[275,1,275,14],[275,15,275,19],[275,20,275,42],[275,43,275,49],[275,50,275,56],[277,1,277,14],[278,1,278,14],[183,4,183,6],[183,8,183,10],[183,11,183,16],[183,19,184,21],[194,38,195,49],[194,52,195,59],[195,4,195,6],[195,8,195,10],[195,11,195,16],[208,52,209,59],[209,4,209,6],[209,8,209,10],[209,11,209,16],[202,3,202,11],[275,57,276,60],[276,1,276,14],[274,50,274,56],[228,2,228,57],[229,2,229,57],[231,2,231,28],[231,32,231,57],[232,2,232,28],[232,32,232,57],[221,1,221,24],[219,1,219,14],[277,57,277,60],[278,57,280,60],[281,57,283,60],[279,20,279,42],[279,43,279,49],[279,50,279,56],[280,15,280,19],[280,20,280,42],[280,43,280,49],[280,50,280,56],[281,15,281,19],[281,20,281,42],[281,43,281,49],[281,50,281,56],[277,15,277,19],[277,20,277,42],[277,43,277,49],[277,50,277,56],[278,15,278,19],[278,20,278,42],[278,43,278,49],[278,50,278,56],[279,1,279,14],[280,1,280,14],[281,1,281,14],[282,1,282,14],[279,15,279,19],[282,15,282,19],[301,0,301,30],[300,0,300,30],[284,4,284,41],[282,20,282,42],[285,0,285,30],[286,0,286,30],[285,31,286,61],[288,0,288,30],[289,0,289,30],[291,0,291,30],[298,0,298,30],[298,31,298,35],[298,36,298,42],[298,43,298,50],[298,51,298,55],[298,56,298,61],[300,56,300,61],[282,43,282,49],[282,50,282,56],[283,15,283,19],[283,20,283,42],[283,43,283,49],[283,50,283,56],[283,1,283,14],[295,51,295,55],[295,56,295,61],[296,0,296,30],[498,2,498,41],[498,42,498,51],[498,52,498,61],[508,0,508,61],[509,0,509,61],[502,0,502,1],[502,42,502,51],[502,52,502,61],[518,18,518,50],[518,51,518,61],[519,18,519,50],[519,51,519,61],[511,0,511,61],[514,0,514,17],[515,0,517,17],[501,52,501,61],[503,0,503,1],[503,42,503,51],[500,0,500,61],[501,0,501,41],[505,0,505,41],[507,0,507,61],[501,42,501,51],[512,0,512,61],[513,0,513,61],[503,52,503,61],[504,0,504,1],[504,42,504,51],[504,52,504,61],[505,42,505,51],[505,52,505,61],[502,2,502,41],[310,31,310,35],[310,36,310,42],[310,43,310,50],[310,51,310,55],[310,56,310,61],[314,31,314,35],[314,36,314,42],[314,43,314,50],[314,51,314,55],[314,56,314,61],[523,51,523,61],[524,0,524,50],[524,51,524,61],[318,31,318,35],[322,56,322,61],[323,0,323,30],[323,31,323,35],[323,36,323,42],[323,43,323,50],[323,51,323,55],[323,56,323,61],[324,0,324,30],[318,0,318,30],[321,31,321,35],[321,36,321,42],[321,43,321,50],[321,51,321,55],[496,0,496,41],[497,2,497,41],[497,42,497,51],[497,52,497,61],[498,0,498,1],[307,51,307,55],[307,56,307,61],[308,0,308,30],[308,31,308,35],[308,36,308,42],[308,43,308,50],[308,51,308,55],[308,56,308,61],[309,0,309,30],[309,31,309,35],[309,36,309,42],[309,43,309,50],[309,51,309,55],[309,56,309,61],[315,0,315,30],[315,31,315,35],[315,36,315,42],[315,43,315,50],[315,51,315,55],[315,56,315,61],[313,0,313,30],[313,31,313,35],[313,36,313,42],[313,43,313,50],[313,51,313,55],[313,56,313,61],[314,0,314,30],[311,36,311,42],[311,43,311,50],[311,51,311,55],[311,56,311,61],[310,0,310,30],[317,0,317,30],[312,56,312,61],[311,0,311,30],[311,31,311,35],[329,56,329,61],[331,51,331,55],[331,31,331,35],[331,36,331,42],[331,43,331,50],[329,0,329,30],[330,0,330,30],[331,0,331,30],[330,31,330,35],[330,36,330,42],[330,56,330,61],[327,0,327,30],[328,0,328,30],[325,0,325,30],[327,31,327,35],[327,36,327,42],[327,43,327,50],[327,51,327,55],[330,43,330,50],[330,51,330,55],[325,31,325,35],[321,56,321,61],[320,31,320,35],[320,36,320,42],[320,43,320,50],[320,51,320,55],[320,56,320,61],[318,36,318,42],[335,31,335,35],[335,36,335,42],[336,56,336,61],[334,36,334,42],[334,43,334,50],[353,39,353,48],[353,49,353,61],[356,0,356,9],[356,10,356,30],[412,31,412,38],[412,39,412,48],[412,49,412,61],[413,31,413,38],[413,39,413,48],[413,49,413,61],[412,0,412,9],[413,0,413,9],[412,10,412,30],[413,10,413,30],[410,31,410,38],[410,39,410,48],[410,49,410,61],[411,31,411,38],[411,39,411,48],[411,49,411,61],[410,0,410,9],[411,0,411,9],[411,10,411,30],[356,31,356,38],[356,39,356,48],[356,49,356,61],[357,0,357,9],[357,10,357,30],[357,31,357,38],[357,39,357,48],[357,49,357,61],[354,0,354,9],[426,31,426,38],[426,39,426,48],[426,49,426,61],[427,31,427,38],[427,39,427,48],[427,49,427,61],[426,0,426,9],[427,0,427,9],[426,10,426,30],[427,10,427,30],[424,31,424,38],[424,39,424,48],[424,49,424,61],[425,31,425,38],[425,39,425,48],[425,49,425,61],[424,0,424,9],[425,0,425,9],[424,10,424,30],[425,10,425,30],[414,31,414,38],[414,39,414,48],[414,49,414,61],[415,31,415,38],[415,39,415,48],[415,49,415,61],[414,0,414,9],[415,0,415,9],[414,10,414,30],[415,10,415,30],[434,0,434,9],[434,11,434,24],[432,31,432,38],[432,39,432,48],[432,49,432,61],[432,0,432,9],[432,10,432,30],[431,0,431,9],[431,10,431,30],[431,31,431,38],[431,39,431,48],[431,49,431,61],[428,31,428,38],[428,39,428,48],[428,49,428,61],[429,31,429,38],[429,39,429,48],[429,49,429,61],[428,0,428,9],[429,0,429,9],[428,10,428,30],[429,10,429,30],[418,39,418,48],[418,49,418,61],[419,31,419,38],[419,39,419,48],[419,49,419,61],[418,0,418,9],[419,0,419,9],[418,10,418,30],[419,10,419,30],[416,31,416,38],[416,39,416,48],[416,49,416,61],[417,31,417,38],[417,39,417,48],[417,49,417,61],[416,0,416,9],[417,0,417,9],[416,10,416,30],[417,10,417,30],[436,24,436,32],[436,50,436,58],[405,0,405,9],[404,0,404,9],[404,10,404,30],[405,10,405,30],[406,10,406,30],[407,10,407,30],[408,10,408,30],[409,10,409,30],[410,10,410,30],[422,31,422,38],[422,39,422,48],[422,49,422,61],[423,31,423,38],[423,39,423,48],[423,49,423,61],[422,0,422,9],[423,0,423,9],[422,10,422,30],[423,10,423,30],[420,31,420,38],[420,39,420,48],[420,49,420,61],[421,31,421,38],[421,39,421,48],[421,49,421,61],[420,0,420,9],[421,0,421,9],[420,10,420,30],[421,10,421,30],[418,31,418,38],[354,10,354,30],[354,31,354,38],[354,39,354,48],[354,49,354,61],[355,0,355,9],[355,10,355,30],[355,31,355,38],[355,39,355,48],[355,49,355,61],[360,0,360,9],[360,10,360,30],[360,31,360,38],[360,39,360,48],[360,49,360,61],[361,0,361,9],[361,10,361,30],[361,31,361,38],[361,39,361,48],[361,49,361,61]],"merged_total":1218,"flags":["merged_cut"]}
[null,null,null,null,null,null,"MINISTERUL AGRICULTURII ŞI DEZVOLTĂRII RURALE"]
[null,null,null,null,null,null,"AGENŢIA PENTRU FINANŢAREA INVESTIŢIILOR RURALE"]
[]
[null,null,null,null,null,null,null,null,null,null,null,null,null,null,null,null,null,null,null,null,null,null,null,null,null,null,null,null,null,null,null,null,null,null,null,null,null,null,null,null,null,null,null,"SECŢIUNE GENERALĂ"]
[]
["DATE DE ÎNREGISTRARE",null,null,null,null,null,null,null,null,null,null,null,null,null,null,null,null,null,null,null,null,null,null,null,null,null,null,null,null,null,null,null,null,null,null,null,null,"NUME ŞI PRENUME DIRECTOR OJFIR"]
[]
["Se completează de către Agenția pentru Finanțarea Investițiilor Rurale -Oficiul"]
["Judeţean- Programul FEADR pentru cereri de finanţare"]
[]
["OJFIR",null,null,null,null,null,null,null,null,null,null,null,null,null,null,null,null,null,null,null,null,null,null,null,null,null,null,null,null,null,null,null,null,null,null,null,null,"Semnătura Director OJFIR"]
[null,null,null,null,null,null,null,null,null,null,null,null,null,null,null,null,null,null,null,null,null,null,null,null,null,null,null,null,null,null,null,null,null,null,null,null,null,"Ştampila OJFIR"]
["Număr ",null,null,null,null,null,"F/N",null,19,null,2]
[null,null,null,null,null,null,"Tip cerere de finanțare",null,"Codificarea măsurii ",null,"Codificarea submăsurii",null,null,"Codificarea în funcţie de articolul din Reg. 1305/2013",null,null,"Tip beneficiar",null,"Cod Decizie Autorizare GAL",null,null,"Codul Regiunii",null,"Codul Judeţului",null,null,"Numărul de ordine de înregistrare în registru"]
[]
[]
["înregistrare"]
[]
[]
[]
[]
["Data Înregistrării"]
["Numele şi prenumele persoanei care înregistrează",null,null,null,null,null,null,null,null,null,null,null,null,null,null,null,null,null,null,null,null,null,null,"Semnătura:"]
[]
["Data primirii cererii de finanţare la contractare:"]
["Se completează de către solicitant"]
["A PREZENTARE GENERALĂ"]
[]
[null,"A1 Măsura",null,null,null,null,null,null,null,null,null,"Submăsura 19.2 - M2/ 2B Ajutor acordat tinerilor fermieri in vederea instalarii acestora ca sef de ferma"]
[]
[null,"A2 Nume prenume / Denumire solicitant:"]
[]
[null,"A3 Titlu proiect:"]
[]
[]
[]
[]
[null,"A4 Descrierea succintă a proiectului:"]
[]
[]
[]
[]
[]
[]
[]
[]
[]
[]
[]
[null,null,"A5 Amplasarea proiectului:"]
[]
["Regiunea de dezvoltare:",null,null,null,null,null,null,null,null,null,null,null,null,null,null,null,null,null,null,null,null,null,null,null,null,null,null,null,"Judeţ:"]
[]
[null,"Obiectivele investiţiei",null,null,null,null,null,null,null,null,null,null,null,null,null,null,"Judeţ",null,null,null,null,null,null,null,null,null,null,null,"Comună/Oraş",null,null,null,null,null,null,null,null,null,null,null,"Sat/Sector",null,null,null,null,null,null,null,null,null,null,"Sat/Sector"]
[]
[]
[]
[]
[]
[]
[]
[]
[]
[]
[]
[]
[]
[]
[]
[]
[]
[]
[]
[]
[]
[]
[]
[]
[]
[]
[]
[]
[]
[]
[]
[]
[]
[]
[]
[]
[]
[]
[]
[]
[null,"A6. Tipul zonei"]
[]
[null,null,null,"Normală",null,null,null,null,null,null,null,null,"Montană",null,null,null,null,null,null,null,"Zona ITI Delta Dunării"]
[]
[]
[null,"A7",null,null,null,null,"Declar pe proprie răspundere că nu am accesat PNA 2014-2016;"]
[null,null,null,null,null,null,"Declar pe propria răspundere că am accesat PNA 2014-2016 şi am beneficiat de finanţare pentru\n"]
[null,null,null,null,null,null,"următoarele achiziţii (pentru care nu voi solicita finanţare din PNDR 2014-2020 ):"]
[null,null,null,"Anul accesării:",null,null,null,null,null,null,null,null,null,"Produs achiziţionat:"]
[]
[]
[]
[]
[]
[null,null,null,null,null,null,"Declar pe proprie răspundere că nu voi accesa PNA 2017-2019 între momentul depunerii Cererii de"]
[null,null,null,null,null,null,"Finanţare la PNDR 2014-2020 şi momentul acordării celei de-a doua tranşe de plată din PNDR 2014-2020;"]
[null,null,null,null,null,null,"Declar pe propria răspundere că nu voi solicita finanţare din PNDR 2014-2020 pentru următoarele achiziţii\n"]
[null,null,null,null,null,null,"pe care intenţionez să le decontez prin accesarea PNA 2017-2019:"]
[null,null,null,"Anul accesării:",null,null,null,null,null,null,null,null,null,"Produs achiziţionat:"]
[]
[]
[]
[]
[]
[null,"A8 Total punctaj pentru criteriile de selectie indeplinite"]
[null,null,null,null,null,"Punctaj"]
[null,null,null,null,null,"Detalierea criteriilor de selecţie îndeplinite:"]
[]
[]
[]
[]
[]
[]
[]
[null,"Denumire consultant:"]
[null,null,null,null,null,null,null,null,null,null,null,null,null,null,null,null,null,null,null,null,null,null,null,null,null,null,null,null,null,null,null,null,"CUI"]
[]
[null,null,null,null,null,null,null,null,null,null,null,null,null,null,null,null,null,null,null,null,null,null,null,null,null,null,null,null,null,null,null,null,"Nr Înreg. ONRC"]
[]
[null,"Denumire proiectant:"]
[null,null,null,null,null,null,null,null,null,null,null,null,null,null,null,null,null,null,null,null,null,null,null,null,null,null,null,null,null,null,null,null,"CUI"]
[]
[null,null,null,null,null,null,null,null,null,null,null,null,null,null,null,null,null,null,null,null,null,null,null,null,null,null,null,null,null,null,null,null,"Nr Înreg. ONRC"]
[]
[]
["B INFORMAŢII PRIVIND SOLICITANTUL"]
["B1 Descrierea solicitantului"]
[null,"B1.1 Informaţii privind solicitantul"]
[null,"Data înființării",null,null,null,null,null,null,null,null,null,null,null,null,null,null,null,null,null,null,"Cod Unic de Înregistrare și/sau Codul de",null,null,null,null,null,null,null,null,null,null,null,null,null,null,null,null,null,null,null,null,null,null,null,"Statut juridic al solicitantului"]
[null,null,null,null,null,null,null,null,null,null,null,null,null,null,null,null,null,null,null,null,"Înregistrare Fiscală"]
[]
[]
[null,"Număr de înregistrare în registrul comerțului"]
[]
[null,"Codurile CAEN ale activităţilor finanţate prin proiect"]
[]
[null,"Codul unic de înregistrare APIA",null,null,null,null,null,null,null,null,null,null,null,null,null,null,null,null,null,null,null,null,null,null,null,null,null,null,null,null,null,null,null,null,null,null,null,"Anul atribuirii codului"]
[]
[null,"Cod Registru Naţional al Exploataţiilor ANSVSA",null,null,null,null,null,null,null,null,null,null,null,null,null,null,null,null,null,null,null,null,null,null,null,null,null,null,null,null,null,null,null,null,null,null,null,"Anul atribuirii codului"]
[]
[null,"B1.2 Sediul social / Domiciliul stabil al solicitantului / Reşedinţa din România"]
[null,"Judeţ",null,null,null,null,null,null,null,null,null,null,null,null,null,null,null,null,null,null,null,null,null,"Localitate",null,null,null,null,null,null,null,null,null,null,null,null,null,null,null,null,null,null,null,"Sat"]
[]
[null,"Cod Poştal",null,null,null,null,null,null,null,null,null,"Strada",null,null,null,null,null,null,null,null,null,null,null,null,null,null,null,null,null,null,"Nr.",null,null,null,null,"Bloc",null,null,null,null,"Scara",null,null,null,null,"Etaj",null,null,null,null,null,"Apartament"]
[]
[null,"Telefon fix",null,null,null,null,null,null,null,null,null,null,null,null,null,null,"Telefon mobil",null,null,null,null,null,null,null,null,null,null,null,null,"Fax",null,null,null,null,null,null,null,null,null,null,null,null,null,"E-mail"]
[]
[]
[null,"B1.3 Numele şi prenumele reprezentantului legal şi funcţia acestuia în cadrul organizaţiei, precum şi"]
[null,"specimenul de semnatură:"]
[]
[null,null,null,"Nume",null,null,null,null,null,null,null,null,null,null,null,"Prenume",null,null,null,null,null,null,null,null,null,null,"Funcţia",null,null,null,null,null,null,null,null,null,null,"Reprezentant legal",null,null,null,null,null,null,null,null,null,null,"Specimen de"]
[null,null,null,null,null,null,null,null,null,null,null,null,null,null,null,null,null,null,null,null,null,null,null,null,null,null,null,null,null,null,null,null,null,null,null,null,null,null,null,null,null,null,null,null,null,null,null,null,"semnătură"]
[]
[null,null,null,null,null,null,null,null,null,null,null,null,null,null,null,null,null,null,null,null,null,null,null,null,null,null,null,null,null,null,null,null,null,null,null,null,null,"LEGAL"]
[]
[null,null,null,"Studii şi coordonate"]
[]
[]
[]
["B2 Informaţii referitoare la reprezentantul legal de proiect"]
[null,"B2.1 Date de identitate ale reprezentantului legal de proiect (asociat unic/ asociat/ administrator) şi asociaţi:"]
[]
[null,null,null,"Data naşterii",null,null,null,null,null,null,null,null,null,null,null,null,null,null,null,null,null,null,null,null,null,"Cod numeric personal"]
[]
[]
[]
[]
[null,null,null,null,"Act de identitate",null,null,null,null,null,null,null,null,null,null,null,null,null,null,"Seria",null,null,"Nr.",null,null,null,null,null,null,"Eliberat la data de",null,null,null,null,null,null,null,null,"de:",null,null,null,null,null,null,null,null,null,null,null,null,null,"Valabil până la:"]
[null,null,null,null,"B.I.",null,null,null,"C.I.",null,null,"Paşaport"]
[]
[]
[null,"Date de identitate ale soţului/soţiei:"]
[]
[null,null,null,"Data naşterii",null,null,null,null,null,null,null,null,null,null,null,null,null,null,null,null,null,null,null,null,null,"Cod numeric personal"]
[]
[]
[]
[]
[null,null,null,null,"Act de identitate",null,null,null,null,null,null,null,null,null,null,null,null,null,null,"Seria",null,null,"Nr.",null,null,null,null,null,null,"Eliberat la data de",null,null,null,null,null,null,null,null,"de:",null,null,null,null,null,null,null,null,null,null,null,null,null,"Valabil până la:"]
[null,null,null,null,"B.I.",null,null,null,"C.I.",null,null,"Paşaport"]
[]
[]
[null,null,null,null,null,"Asociat unic",null,null,null,null,null,null,null,null,null,null,null,null,null,null,"Asociat majoritar",null,null,null,null,null,null,null,null,null,null,null,null,null,"Administrator"]
[]
[null,"Asociați"]
[null,null,null,"Nume şi prenume asociat:"]
[]
[null,null,null,"Data naşterii",null,null,null,null,null,null,null,null,null,null,null,null,null,null,null,null,null,null,null,null,null,"Cod numeric personal"]
[]
[]
[]
[]
[null,null,null,null,"Act de identitate",null,null,null,null,null,null,null,null,null,null,null,null,null,null,"Seria",null,null,"Nr.",null,null,null,null,null,null,"Eliberat la data de",null,null,null,null,null,null,null,null,"de:",null,null,null,null,null,null,null,null,null,null,null,null,null,"Valabil până la:"]
[null,null,null,null,"B.I.",null,null,null,"C.I.",null,null,"Paşaport"]
[]
[]
[]
[]
[null,"B2.2 Domiciliul stabil al reprezentantului legal de proiect"]
[null,"Judeţ",null,null,null,null,null,null,null,null,null,null,null,null,null,null,null,null,null,null,null,null,null,"Localitate",null,null,null,null,null,null,null,null,null,null,null,null,null,null,null,null,null,null,null,"Sat"]
[]
[null,"Cod Poştal",null,null,null,null,null,null,null,null,null,null,null,"Strada",null,null,null,null,null,null,null,null,null,null,null,null,null,null,null,null,null,"Nr.",null,null,null,null,null,"Bloc",null,null,null,null,null,null,null,null,null,null,null,"Scara",null,null,null,null,null,"Ap."]
[]
[null,"Telefon fix",null,null,null,null,null,null,null,null,null,null,null,null,null,null,null,null,null,null,null,"Telefon mobil",null,null,null,null,null,null,null,null,null,null,null,null,null,null,null,null,null,"Fax"]
[]
[null,"E-mail"]
[]
[]
["B3 Informaţii privind contul bancar pentru proiect F.E.A.D.R."]
[]
[null,null,"B3.1 Denumirea Băncii",null,null,null,null,null,null,null,null,null,null,null,null,null,null,null,null,null,null,null,null,null,null,null,null,null,null,null,null,null,"Denumirea Sucursalei/Filialei"]
[]
[]
[null,null,"B3.2 Adresa Băncii/Sucursalei"]
[]
[]
[null,null,"B3.3 Cod IBAN",null,null,null,null,null,null,null,null,null,null,null,null,null,null,null,null,null,null,null,null,null,null,null,null,null,null,null,null,null,"B3.4 Titularul contului bancar"]
[]
[]
[]
["REGULI DE COMPLETARE\n\nLa punctul D, Alte informaţii: Programarea proiectului, se va introduce numărul de luni de implementare a\nproiectului.\n\nLa punctul E. Lista documentelor anexate, se vor bifa documentele aferente tipului de proiect şi de solicitant, iar in ultima coloană a tabelului se vor menţiona paginile între care se găseste documentul respectiv în dosarul cererii de finanţare.\nTrebuie bifate toate documentele de pe coloana “Obligatoriu pentru toate proiectele”.\n\nSe vor completa celulele albe din tabelul privind stabilirea categoriei de fermă cu suprafeţele/numărul de capete aferent culturii/speciei, iar calculul valorii productiei standard (SO) se va efectua automat.\n\nSe va completa Declaraţia pe propria răspundere a solicitantului cu datele solicitate (denumire/nume prenume solicitant, titlul proiectului), şi se vor bifa toate angajamentele menţionate în cuprinsul acesteia.\n\nCâmpul Studii şi coordonate se va completa cu: competentele şi aptitudinile profesionale îndeplinite.\n\nTrebuie bifate şi anexate toate documentele de pe coloana “DEPUNERE-Obligatoriu pentru toate proiectele” din secțiunea E - Lista documentelor anexate.\n"]
[]
[]
[]
[]
[]
[]
[]
[]
[]
[]
[]
[]
[]
[]
[]
[]
[]
[]
[]
[]
[]
[]
[]
[]
[]
[]
[]
[]
[]
[]
[]
[]
["C FINANȚĂRI NERAMBURSABILE solicitate şi/sau obţinute"]
[null,null,"C. Solicitatul a mai obtinut finanţări nerambursabile ? Dacă Da, detaliaţi cu datele solicitate în tabelul de mai jos"]
[]
[null,null,null,null,null,null,null,null,null,null,null,"DA",null,null,null,null,null,null,null,"NU"]
[]
[null,"DENUMIRE PROGRAM FINANȚARE",null,null,null,null,null,null,null,null,null,null,null,null,null,"DA",null,null,null,null,null,null,null,null,null,null,null,null,null,null,null,null,null,null,null,null,null,null,null,null,null,null,null,null,null,null,null,null,null,null,null,null,null,null,null,null,null,"NU"]
[null,null,null,null,null,null,null,null,null,null,null,null,null,null,null,"Număr proiecte",null,null,null,null,"Titlul Proiectui și numărul contractului de finanțare ",null,null,null,null,null,null,null,null,null,null,null,null,null,null,null,null,null,null,null,null,null,null,"Data finalizării\nll/zz/aaaa",null,null,null,null,null,null,"Valoarea\nsprijinului\n(EUR)"]
[null,"Program Naţional Apicol (PNA)"]
[null,"Program Naţional de Sprijin al României în Sectorul vitivinicol (PNS)"]
[null,"FEADR*"]
[null,"Alte programe europene*"]
[null,"Alte programe europene*"]
[null,"Alte programe europene*"]
[null,"Alte programe internaţionale*"]
[null,"Alte programe internaţionale*"]
[null,"Alte programe internaţionale*"]
[null,null,null,null,"\n* se completează de către solicitant cu denumirea programului"]
["MINISTERUL AGRICULTURII ŞI DEZVOLTĂRII RURALE",null,null,null,null,null,null,null,null,null,null,null,null,null,null,null,null,null,null,null,null,null,null,null,null,null,null,null,null,null,null,"SECTIUNE SPECIFICĂ MĂSURA M2/2B"]
["AGENŢIA PENTRU FINANŢAREA INVESTIŢIILOR RURALE"]
[]
["D. ALTE INFORMAȚII :"]
["Programarea proiectului:"]
["Numar luni de implementare"]
[]
["E. LISTA DOCUMENTELOR ANEXATE PROIECTELOR AFERENTE MĂSURII M2/2B",null,null,null,null,null,null,null,null,null,null,null,null,null,null,null,null,null,null,null,null,null,null,null,null,null,null,null,null,null,null,null,null,null,null,null,null,null,null,null,null,null,null,null,null,null,null,null,null,null,null,null,null,null,null,null,"OPIS"]
[null,null,null,null,null,null,null,null,null,null,null,null,null,null,null,null,null,null,null,null,null,null,null,null,null,null,null,null,null,null,null,null,null,null,null,null,null,null,null,null,null,null,null,null,null,null,null,null,null,null,null,null,null,null,null,null,"documente"]
["A  se anexa documentele în ordinea de mai jos:"]
["Lista documente",null,null,null,null,null,null,null,null,null,null,null,null,null,null,null,null,null,null,null,null,null,null,null,null,null,null,null,null,null,null,"Obligatoriu pentru toate proiectele",null,null,null,null,"Obligatoriu, dacă proiectul impune",null,null,null,null,null,null,"PAGINA de   la - până la",null,null,null,null,null,null,null,"Obligatoriu pentru toate proiectele",null,null,null,null,"Obligatoriu, dacă proiectul impune"]
["Documente specifice etapei:",null,null,null,null,null,null,null,null,null,null,null,null,null,null,null,null,null,null,null,null,null,null,null,null,null,null,null,null,null,null,"DEPUNERE",null,null,null,null,null,null,null,null,null,null,null,null,null,null,null,null,null,null,null,"CONTRACTARE"]
["1. Plan de afaceri pentru dezvoltarea exploataţiei"]
["2. Documente proprietate/folosinta pentru exploataţia agricola, documente obligatoriu de prezentat la depunerea cererii de finanţare\na) Documente solicitate pentru terenul agricol:\n● document care atestă dreptul de proprietate asupra terenului agricol conform legislaţiei în vigoare (contract de vânzare - cumpărare autentificat de notar, act de donaţie autentificat de notar, hotarâre judecatorească definitivă şi irevocabilă cu punere în posesie, certificat de moştenitor unic autentificat de notar şi alte documente care demonstrează terţilor dreptul de proprietate conform legislaţiei în vigoare autentificate la notar)"]
["si/sau\n● tabel centralizator - emis de Primărie, semnat de persoanele autorizate conform legii, (conţinând sumarul contractelor de arendare la data depunerii Cererii de Finanţare), cu suprafeţele luate în arendă pe categorii de folosinţă"]
["si/sau\n● contract de concesionare, valabil la data depunerii Cererii de Finanţare, însoţit de adresa emisă de concedent care conţine situaţia privind respectarea clauzelor contractuale, dacă este în graficul de realizare a investiţiilor prevăzute în contract şi alte clauze;"]
["şi/sau\n● contractul de comodat/ contractul de închiriere/ documentul potrivit căruia suprafaţa de teren a fost temporar în administrare/ folosinţă."]
["● documente pentru terenul ce constituie vatra stupinei – acte de proprietate conform legislaţiei în vigoare, sau contract de concesiune/ contract de arendă/ închiriere/ comodat valabile la momentul depunerii cererii de finanţare.\nSuprafaţa de teren eligibilă pentru vatra stupinei este de minim 5 mp/stup şi 50 mp pentru fiecare pavilion apicol."]
["● În cazul exploataţiilor care presupun înfiinţarea şi/sau reconversia plantaţiilor pomicole, contractele care conferă dreptul de folosință (arendă, concesiune) asupra terenurilor agricole, pentru exploatații pomicole, să aibă o valabilitate de minimum 15 ani (excepție: pepinierele, culturile de căpșun, zmeur, mur, coacăz și agriș unde perioada minimă este de 10 ani), începând cu anul depunerii Cererii de Finanţare."]
["● Document notarial care atestă constituirea patrimoniului de afectaţiune."]
["b) Pentru construcţii permanente, conform prevederilor Legii nr.50/1991, cu modificările şi completările ulterioare:\n● documentul care atestă dreptul real principal asupra construcţiei: drept de proprietate, uz, uzufruct, superficie, servitute (dobândite prin:contract de vânzarecumpărare, de schimb, de donaţie, certificat de moştenitor, act administrativ de restituire, hotărâre judecătorească);"]
["c) Pentru construcţii provizorii, conform prevederilor Legii nr.50/1991, cu modificările şi completările ulterioare:\n● documentul care atestă dreptul real principal asupra construcţiei: drept de proprietate, uz, uzufruct, superficie, servitute (dobândite prin:contract de vânzarecumpărare, de schimb, de donaţie, certificat de moştenitor, act administrativ de restituire, hotărâre judecătorească);\n● documentul care atestă dreptul de creanţă asupra construcţiei dobândit prin: concesiune, comodat, locaţiune;\nÎn cazul prezentării contractului de comodat/locaţiune pentru construcţiile cu caracter provizoriu, conform prevederilor Legii 50/1991, cu modificările şi completările ulterioare, solicitantul trebuie să ataşeze şi acordul expres al proprietarului de drept.\n● documente care atestă: drept de proprietate, uz, uzufruct, superficie, servitute (dobândit prin: contract de vânzare-cumpărare, de schimb, de donaţie, certificat de moştenitor, act administrativ de restituire, hotărâre judecătorească) sau drept de creanţă asupra construcţiei dobândit prin: concesiune, comodat, locaţiune."]
["d) Documente solicitate pentru animale, păsări şi familii de albine:\n● extras din Registrul Exploataţiei emis de ANSVSA/ DSVSA/ Circumscripţia Veterinară (adeverinţă eliberată de medicul veterinar de circumscripţie) actualizat cu cel mult 30 zile calendaristice înaintea depuneri cereri de finanţare din care să rezulte: efectivul de animale deţinut, al păsărilor şi al familiilor de albine şi data primei înscrieri a solicitantului în Registrul Exploataţiei, însoţit de formular de mişcare ANSVSA/DSVSA (Anexa 4 din Normele sanitare veterinare ale Ordinului ANSVSA nr. 40/2010);"]
["● PAŞAPORTUL emis de ANZ pentru ecvideele (cabalinele) cu rasă şi origine."]
["e) Pentru exploataţiile vegetale: copie din Registrul agricol emis de Primării actualizată în anul depunerii cererii de finanţare care să confirme dreptul de folosinţă (proprietate/arendă/concesionare) al terenului/ fermei zootehnice/ animalelor (doar proprietate) înregistrate pentru baza de producţie, cu ştampila primăriei şi menţiunea \"Conform cu originalul\".\nPentru exploataţiile mixte şi zootehnice: copie din Registrul agricol emis de Primării actualizată cu cel mult 30 de zile înaintea depunerii cererii de finanţare care să confirme dreptul de folosinţă (proprietate/arendă/concesionare) al terenului/ fermei zootehnice/animalelor (doar proprietate) înregistrate pentru baza de producţie, cu ştampila primăriei şi menţiunea \"Conform cu originalul\".\nÎn situaţia în care primăriile nu pot elibera copia Registrului agricol cu situaţia curentă, se va depune copia ultimei înregistrari a registrului agricol însoţită de adeverinţă emisă de primărie privind situaţia curentă."]
["3. Copia Contractului de colectare a gunoiului de grajd încheiat între solicitant și deținătorul platformei/Copia Adeverinței emisă de Primăria Comunei pe teritoriul căreia se regăsește platforma comunală, din care să rezulte faptul că aceasta are capacitatea de preluare a gunoiului de grajd din exploatația solicitantului."]
["4. Copiile situaţiilor financiare pentru anii \"n\" şi \"n-1\", unde \"n\" este anul anterior anului în care solicitantul depune Cererea de Finanţare, înregistrate la Administraţia Financiară;\na) Pentru societăţi comerciale:\n-Bilanţul (cod 10);\n-Contul de profit şi pierderi (cod 20);\n-Datele informative (cod 30);\n-Situaţia activelor imobilizate (cod 40);"]
["şi/sau\n-Declaraţia de inactivitate înregistrată la Administraţia Financiară (cod S1046), în cazul solicitanţilor care de la constituire, nu au desfăşurat activitate pe o perioadă mai mare de un an fiscal."]
["b) Pentru persoane fizice autorizate, întreprinderi individuale şi întreprinderi familiale\n-Declaraţia privind veniturile realizate (Formularul 200 - cod 14.13.01,13)"]
["şi/sau\n-Declaraţia privind veniturile din activităţi agricole - impunere pe normele de venit (Formularul 221 - cod 14.13.01.13/9), în cazul solicitanţilor care în anii \"n\" şi \"n-1\" sunt autorizaţi conform OUG. 44/2008, cu modificările şi completările ulterioare."]
["5. Certificat care să ateste lipsa datoriilor restante fiscale şi sociale emise de Direcţia Generală a Finanţelor Publice, iar în cazul în care solicitantul este proprietar asupra imobilelor, se va depune Certificat emis de Primăria de pe raza cărora îşi au sediul social şi punctele de lucru,"]
["6. Copia actului de identitate pentru reprezentantul legal de proiect (asociat unic/asociat majoritar/administrator),"]
["7. Certificatul de înregistrare eliberat de Oficiul Registrului Comertului conform legislaţiei în vigoare,"]
["8. Hotărârea Adunării Generale a Acţionarilor (AGA) persoanei juridice, prin care se desemnează ca tânărul fermier (actionar majoritar 50%+1) să reprezinte societatea în relaţia cu AFIR și că exercită un control efectiv pe termen lung (pentru cel puţin 6 ani) în ceea ce priveşte deciziile referitoare la gestionare, beneficii, riscuri financiare în cadrul exploataţiei respective."]
["9.1. Solicitantul deține competențe și aptitudini profesionale, îndeplinind cel puțin una dintre următoarele condiții:\na). Studii medii/superioare în domeniul agricol/veterinar/economie agrară;\n-diplomă de absolvire studii superioare în domeniul agricol\nsau"]
["-diplomă de absolvire studii postliceale şi sau liceale în domeniul agricol;"]
["9.2 Certificat de calificare profesională care atestă urmarea unui curs de calificare în domeniul agricol, agro-alimentar, veterinar sau economie agrară de cel puţin Nivel 1 de calificare profesională, conform legislaţiei aplicabile la momentul acordării certificatului ;"]
["9.3.a) Competențe în domeniul agricol/veterinar/economie agrară dobândite prin participarea la programe de inițiere/ instruire/specializare care nu necesită un document eliberat de formatorii recunoscuţi de către ANC şi presupune un număr de ore sub numărul de ore aferent Nivelului I de calificare profesională (Nivelul I de calificare presupune 360 de ore de curs pentru cei care au urmat cursuri până la 1 ianuarie 2016, şi 80 de ore de curs pentru cei care au urmat cursuri după 1 ianuarie 2016); competențele în domeniile menționate vor fi dovedite prin prezentarea certificatului/ diplomei/ atestatului de absolvire a cursului sau a unui document echivalent acestora se acceptă şi certificatele de calificare eliberate de ANCA. In cazul în care, la depunerea Cererii de Finanțare nu este emis documentul de absolvire a cursului, va fi acceptată\nadeverința de absolvire a cursului sub condiţia prezentării certificatului/ diplomei/ atestatului de absolvire a cursului sau a unui document echivalent acestora în original pentru acordarea celei de-a doua tranşe de\nsprijin; în caz contrar, acesta va fi declarat neeligibil."]
["sau\nb) Recunoaşterea de către un centru de evaluare si certificare a competențelor profesionale obținute pe alte căi decât cele formale autorizat ANC a competenţelor dobândite ca urmare a experienţei profesionale;"]
["9.4. Angajamentul de a dobândi competențele profesionale adecvate într-o perioadă de grație de maximum 33 de luni de la data adoptării deciziei individuale de acordare a ajutorului, dar nu mai mult de ultima tranșă de plată;"]
["9.5. În cazul în care solicitantul a absolvit în ultimele 12 luni până la depunerea cererii de finanțare și nu poate prezenta diploma în original, poate fi acceptată o adeverință de absolvire a studiilor respective, însoțită de situația școlară disponibilă, sub condiția prezentării diplomei în original pentru acordarea celei de a doua tranșe de sprijin; în caz contrar, acesta va fi declarat neeligibil;\nI. În cazul solicitanţilor care nu au studii medii/superioare, aceştia prezintă diploma/ document doveditor (inclusiv suplimentul descriptiv al certificatelor de formare profesională atestate ANC care cuprind această informaţie) de absolvire a minim 8 clase."]
["II. Pentru demonstrarea criteriului de selecţie privind formarea profesională care conferă un nivel de calificare superior nivelului minim obligatoriu solicitat, se va prezenta actul doveditor (certificat de calificare) eliberat de un formator de formare profesională acreditat (recunoscut de Ministerul Educaţiei Naţionale) sau certificat de absolvire a cursului de calificare emis de ANCA, prin care se certifică competențele profesionale de minim Nivel 1 de calificare (Nivelul I de calificare presupune 360 de ore de curs pentru cei care au urmat cursuri până la 1 ianuarie 2016, şi 80 de ore de curs pentru cei care au urmat cursuri după 1 ianuarie 2016) în domeniul agricol, agro-alimentar, veterinar sau economie agrară, conform legislaţiei aplicabile la momentul acordării certificatului."]
["10. Cazierul judiciar in original (fără înscrieri privind sancțiuni economicofinanciare) al reprezentantului legal, valabil la data încheierii contractului."]
["11. Declaraţie pe proprie răspundere privind îndeplinirea criteriului de selecţie privind rasele/soiurile autohtone până la momentul acordării celei de-a doua tranşe de sprijin\nsau\nDocument care certifică utilizarea resurselor genetice autohtone, document obligatoriu de prezentat la depunerea cererii de finanţare. Soiurile autohtone se regăsesc în Catalogul oficial al soiurilor de plante de cultură din România/ Institutul de Stat pentru Testarea și Înregistrarea Soiurilor (ISTIS)– aprobat anual.\nIn cazul animalelor se va depune Certificatul de origine pentru animalele deţinute de solicitant emis de Asociaţia Crescătorilor de Animale din specia prevăzută în proiect, autorizată de ANARZ. Acest document se ataşează numai pentru argumentarea criteriului de selecţie."]
["12. În cazul studenţilor, adeverinţă de la instituţia de învăţământ din care să reiasă: anul de studiu, forma de învăţământ (cu frecvenţă/la zi sau fără frecvenţă, etc.) specializarea şi UAT-ul în care este situată unitatea de învăţământ frecventată;"]
["13. Document emis de ANSVSA, prin care se certifică înregistrarea exploatației comerciale de tip A, conform Ordinului ANSVSA nr. 16 din 16.03.2010"]
["14. Document de la bancă din care să rezulte următoarele: denumirea solicitantului, a unității bancare, adresa, codul IBAN."]
["15. Autorizaţia pentru producerea, prelucrarea şi comercializarea seminţelor certificate şi a materialului săditor (în cazul producătorilor de seminţe şi material săditor);"]
["16. Alte documente justificative (dupa caz)"]
[]
[]
[]
[]
[]
[]
[]
[]
[]
[]
[]
[]
[]
[]
[]
[]
[]
["STABILIREA CATEGORIEI DE FERMĂ\nSTRUCTURA CULTURILOR ŞI CALCULUL VALORII PRODUCTIEI STANDARD (SO)"]
["Coduri EUROSTAT",null,null,null,null,null,null,null,null,null,"Denumire culturi",null,null,null,null,null,null,null,null,null,null,null,null,null,null,null,null,null,null,null,null,"Suprafaţa       (ha)",null,null,null,null,null,null,null,"SO 2013           euro/ha",null,null,null,null,null,null,null,null,null,"SO"]
[0,null,null,null,null,null,null,null,null,null,1,null,null,null,null,null,null,null,null,null,null,null,null,null,null,null,null,null,null,null,null,2,null,null,null,null,null,null,null,3,null,null,null,null,null,null,null,null,null,4]
["B_1_1_1",null,null,null,null,null,null,null,null,null,"Grâu comun",null,null,null,null,null,null,null,null,null,null,null,null,null,null,null,null,null,null,null,null,null,null,null,null,null,null,null,null,614.09,null,null,null,null,null,null,null,null,null,{"$f":"AF355*AN355","v":0}]
["B_1_1_2",null,null,null,null,null,null,null,null,null,"Grâu dur",null,null,null,null,null,null,null,null,null,null,null,null,null,null,null,null,null,null,null,null,null,null,null,null,null,null,null,null,432.81,null,null,null,null,null,null,null,null,null,0]
["B_1_1_3",null,null,null,null,null,null,null,null,null,"Secară",null,null,null,null,null,null,null,null,null,null,null,null,null,null,null,null,null,null,null,null,null,null,null,null,null,null,null,null,354.27,null,null,null,null,null,null,null,null,null,0]
["B_1_1_4",null,null,null,null,null,null,null,null,null,"Orz+Orzoaică",null,null,null,null,null,null,null,null,null,null,null,null,null,null,null,null,null,null,null,null,null,null,null,null,null,null,null,null,529.44000000000005,null,null,null,null,null,null,null,null,null,0]
["B_1_1_5",null,null,null,null,null,null,null,null,null,"Ovăz",null,null,null,null,null,null,null,null,null,null,null,null,null,null,null,null,null,null,null,null,null,null,null,null,null,null,null,null,331.88,null,null,null,null,null,null,null,null,null,0]
["B_1_1_6",null,null,null,null,null,null,null,null,null,"Porumb boabe",null,null,null,null,null,null,null,null,null,null,null,null,null,null,null,null,null,null,null,null,null,null,null,null,null,null,null,null,641.79999999999995,null,null,null,null,null,null,null,null,null,0]
["B_1_1_7",null,null,null,null,null,null,null,null,null,"Orez",null,null,null,null,null,null,null,null,null,null,null,null,null,null,null,null,null,null,null,null,null,null,null,null,null,null,null,null,913.26,null,null,null,null,null,null,null,null,null,0]
["B_1_1_99",null,null,null,null,null,null,null,null,null,"Alte cereale(sorgul, triticale, meiul, hrișca, iarba-cănăraşului, altele)",null,null,null,null,null,null,null,null,null,null,null,null,null,null,null,null,null,null,null,null,null,null,null,null,null,null,null,null,452.74,null,null,null,null,null,null,null,null,null,0]
["B_1_2_1",null,null,null,null,null,null,null,null,null,"Mazăre boabe, fasole boabe, lupin dulce",null,null,null,null,null,null,null,null,null,null,null,null,null,null,null,null,null,null,null,null,null,null,null,null,null,null,null,null,533.77,null,null,null,null,null,null,null,null,null,0]
["B_1_2_2",null,null,null,null,null,null,null,null,null,"Linte, bob, măzăriche, năut",null,null,null,null,null,null,null,null,null,null,null,null,null,null,null,null,null,null,null,null,null,null,null,null,null,null,null,null,454.79,null,null,null,null,null,null,null,null,null,0]
["B_1_3",null,null,null,null,null,null,null,null,null,"Cartofi(inclusiv cartofi noi, material săditor, cartof dulce destinat consumului uman)",null,null,null,null,null,null,null,null,null,null,null,null,null,null,null,null,null,null,null,null,null,null,null,null,null,null,null,null,3167.88,null,null,null,null,null,null,null,null,null,0]
["B_1_4",null,null,null,null,null,null,null,null,null,"Sfeclă de zahăr",null,null,null,null,null,null,null,null,null,null,null,null,null,null,null,null,null,null,null,null,null,null,null,null,null,null,null,null,1449.74,null,null,null,null,null,null,null,null,null,0]
["B_1_5",null,null,null,null,null,null,null,null,null,"Plante rădăcinoase pentru nutreț (sfecla furajeră, alte plante furajere din familia brasicaceelor,  morcovi furajeri, batata(cartof dulce), păstârnac, ignama, manioc)",null,null,null,null,null,null,null,null,null,null,null,null,null,null,null,null,null,null,null,null,null,null,null,null,null,null,null,null,1101.45,null,null,null,null,null,null,null,null,null,0]
["B_1_6_1",null,null,null,null,null,null,null,null,null,"Tutun",null,null,null,null,null,null,null,null,null,null,null,null,null,null,null,null,null,null,null,null,null,null,null,null,null,null,null,null,1696.83,null,null,null,null,null,null,null,null,null,0]
["B_1_6_2",null,null,null,null,null,null,null,null,null,"Hamei",null,null,null,null,null,null,null,null,null,null,null,null,null,null,null,null,null,null,null,null,null,null,null,null,null,null,null,null,4105.24,null,null,null,null,null,null,null,null,null,0]
["B_1_6_4",null,null,null,null,null,null,null,null,null,"Rapiţă",null,null,null,null,null,null,null,null,null,null,null,null,null,null,null,null,null,null,null,null,null,null,null,null,null,null,null,null,647.72,null,null,null,null,null,null,null,null,null,0]
["B_1_6_5",null,null,null,null,null,null,null,null,null,"Floarea soarelui",null,null,null,null,null,null,null,null,null,null,null,null,null,null,null,null,null,null,null,null,null,null,null,null,null,null,null,null,564.52,null,null,null,null,null,null,null,null,null,0]
["B_1_6_6",null,null,null,null,null,null,null,null,null,"Soia",null,null,null,null,null,null,null,null,null,null,null,null,null,null,null,null,null,null,null,null,null,null,null,null,null,null,null,null,611,null,null,null,null,null,null,null,null,null,0]
["B_1_6_7",null,null,null,null,null,null,null,null,null,"In pentru ulei",null,null,null,null,null,null,null,null,null,null,null,null,null,null,null,null,null,null,null,null,null,null,null,null,null,null,null,null,1563.56,null,null,null,null,null,null,null,null,null,0]
["B_1_6_8",null,null,null,null,null,null,null,null,null,"Alte plante pentru ulei: ricin, şofrănaş, susan, arahide, mac, muştar, alte culturi oleaginoase",null,null,null,null,null,null,null,null,null,null,null,null,null,null,null,null,null,null,null,null,null,null,null,null,null,null,null,null,374,null,null,null,null,null,null,null,null,null,0]
["B_1_6_9",null,null,null,null,null,null,null,null,null,"In textil",null,null,null,null,null,null,null,null,null,null,null,null,null,null,null,null,null,null,null,null,null,null,null,null,null,null,null,null,307.17,null,null,null,null,null,null,null,null,null,0]
["B_1_6_10",null,null,null,null,null,null,null,null,null,"Cânepă",null,null,null,null,null,null,null,null,null,null,null,null,null,null,null,null,null,null,null,null,null,null,null,null,null,null,null,null,518.11,null,null,null,null,null,null,null,null,null,0]
["B_1_6_12",null,null,null,null,null,null,null,null,null,"Plante medicinale și aromatice, inclusiv ceaiul, cafeaua şi cicoarea pentru cafea: muşeţel, mătrăgună, mentă, mac, angelica,chimen, genţiana, iasomia, lavanda, levănțica, origanul, şofranul, salvia, valeriana,  gălbeneaua, etc. ",null,null,null,null,null,null,null,null,null,null,null,null,null,null,null,null,null,null,null,null,null,null,null,null,null,null,null,null,937.85,null,null,null,null,null,null,null,null,null,0]
["B_1_6_99",null,null,null,null,null,null,null,null,null,"Alte plante industriale: cicoarea, trestia de zahăr, alte plante tehnice nemenţionate în altă parte, sorgul tehnic (pentru mături)",null,null,null,null,null,null,null,null,null,null,null,null,null,null,null,null,null,null,null,null,null,null,null,null,null,null,null,null,717.56,null,null,null,null,null,null,null,null,null,0]
["B_1_7_1_1",null,null,null,null,null,null,null,null,null,"Legume proaspete, pepeni şi căpşuni - în câmp:\n- varza, conopidă, broccoli, sparanghel\n- legume pentru frunze (praz, salată, spanac etc.)\n- tomate,\n- porumb dulce,\n- legume cultivate pentru fructe: vinete, ardei, dovleci şi dovlecei, castraveciori,\n- legume cultivate pentru rădăcină, bulbi, tuberculi (excepţie cartofi): morcovi, păstârnac, ceapă, usturoi, ridichii, napi,\n- legume păstăi (fasole, mazăre, cu excepţia lintei şi a năutului)\n- fructele plantelor neperene (căpşuni, pepeni galbeni, pepeni verzi, ananas)",null,null,null,null,null,null,null,null,null,null,null,null,null,null,null,null,null,null,null,null,null,null,null,null,null,null,null,null,6196.49,null,null,null,null,null,null,null,null,null,0]
["B_1_7_1_2",null,null,null,null,null,null,null,null,null,"Legume proaspete, pepeni şi căpşuni - în grădină destinate comercializării:\n- varza, conopidă, broccoli, sparanghel\n- legume pentru frunze (praz, salată, spanac etc.)\n- tomate,\n- porumb dulce,\n- legume cultivate pentru fructe: vinete, ardei, dovleci şi dovlecei, castraveciori,\n- legume cultivate pentru rădăcină, bulbi, tuberculi (excepţie cartofi) - morcovi, păstârnac, ceapă, usturoi, ridichii, napi,\n- legume păstăi: fasole, mazăre, cu excepţia lintei şi a năutului,\n- fructele plantelor neperene: căpşuni, pepeni galbeni, pepeni verzi, ananas.",null,null,null,null,null,null,null,null,null,null,null,null,null,null,null,null,null,null,null,null,null,null,null,null,null,null,null,null,7176.16,null,null,null,null,null,null,null,null,null,0]
["B_1_7_2",null,null,null,null,null,null,null,null,null,"Legume proaspete, pepeni şi căpşuni - în sere și solarii:\n- varza, conopidă, broccoli, sparanghel\n- legume pentru frunze (praz, salată, spanac etc.)\n- tomate,\n- porumb dulce,\n- legume cultivate pentru fructe: vinete, ardei, dovleci şi dovlecei, castraveciori,\n- legume cultivate pentru rădăcină, bulbi, tuberculi (excepţie cartofi): morcovi, păstârnac,ceapă, usturoi, ridichii, napi,\n- legume păstăi: fasole, mazăre, cu excepţia lintei şi a năutului,\n- fructele plantelor neperene: căpşuni, pepeni galbeni, pepeni verzi, ananas.",null,null,null,null,null,null,null,null,null,null,null,null,null,null,null,null,null,null,null,null,null,null,null,null,null,null,null,null,27507.66,null,null,null,null,null,null,null,null,null,0]
["B_1_8_1",null,null,null,null,null,null,null,null,null,"Flori în câmp:\n- bulbi de flori, cormi, tuberculi,\n- flori tăiate şi boboci,\n- plante cu flori şi plante ornamentale",null,null,null,null,null,null,null,null,null,null,null,null,null,null,null,null,null,null,null,null,null,null,null,null,null,null,null,null,25527.46,null,null,null,null,null,null,null,null,null,0]
["B_1_8_2",null,null,null,null,null,null,null,null,null,"Flori - în sere și solarii:\n- bulbi de flori, cormi, tuberculi,\n- flori tăiate şi boboci,\n- plante cu flori şi plante ornamentale",null,null,null,null,null,null,null,null,null,null,null,null,null,null,null,null,null,null,null,null,null,null,null,null,null,null,null,null,83743.81,null,null,null,null,null,null,null,null,null,0]
["B_1_9_1",null,null,null,null,null,null,null,null,null,"Plante de nutreț - Iarba temporară: iarba semănată pe terenuri arabile cedate producţiilor furajere erbacee pe o perioadă mai scurtă de 5 ani şi chiar sub un an",null,null,null,null,null,null,null,null,null,null,null,null,null,null,null,null,null,null,null,null,null,null,null,null,null,null,null,null,266.22000000000003,null,null,null,null,null,null,null,null,null,0]
["B_1_9_2_1",null,null,null,null,null,null,null,null,null,"Plante de nutreț - alte furaje verzi - Porumb siloz",null,null,null,null,null,null,null,null,null,null,null,null,null,null,null,null,null,null,null,null,null,null,null,null,null,null,null,null,1029.19,null,null,null,null,null,null,null,null,null,0]
["B_1_9_2_2",null,null,null,null,null,null,null,null,null,"Plante de nutreț - Alte furaje verzi: culturi anuale de cereale recoltate verzi, sorgul anual, anumite graminee anuale cum este firuţa, cruciferele, facelia dacă sunt recoltate verzi şi nu au fost menţionate în altă parte, măzăriche, lupin dulce.",null,null,null,null,null,null,null,null,null,null,null,null,null,null,null,null,null,null,null,null,null,null,null,null,null,null,null,null,476.13,null,null,null,null,null,null,null,null,null,0]
["B_1_9_2_99",null,null,null,null,null,null,null,null,null,"Alte plante de nutreț: diferite specii de trifoi anual sau peren (trifoi alb, trifoi roşu, trifoi de Alexandria), diferite varietăţi de lucernă.",null,null,null,null,null,null,null,null,null,null,null,null,null,null,null,null,null,null,null,null,null,null,null,null,null,null,null,null,662.78,null,null,null,null,null,null,null,null,null,0]
["B_1_10",null,null,null,null,null,null,null,null,null,"Seminţe şi seminceri:\n- semințe de graminee,\n- seminţe pentru horticultură,\n- seminţe şi răsaduri pentru teren arabil cu excepţia cerealelor, a boabelor de leguminoase uscate, a cartofilor, a plantelor oleaginoase.",null,null,null,null,null,null,null,null,null,null,null,null,null,null,null,null,null,null,null,null,null,null,null,null,null,null,null,null,2993.73,null,null,null,null,null,null,null,null,null,0]
["B_1_11",null,null,null,null,null,null,null,null,null,"Alte plante: culturi de mică importanţă economică care nu pot fi încadrate în altă categorie",null,null,null,null,null,null,null,null,null,null,null,null,null,null,null,null,null,null,null,null,null,null,null,null,null,null,null,null,592.99,null,null,null,null,null,null,null,null,null,0]
["B_3_1",null,null,null,null,null,null,null,null,null,"Păşuni și fânețe permanente - pășuni și fânețe",null,null,null,null,null,null,null,null,null,null,null,null,null,null,null,null,null,null,null,null,null,null,null,null,null,null,null,null,295.04000000000002,null,null,null,null,null,null,null,null,null,0]
["B_3_2",null,null,null,null,null,null,null,null,null,"Păşuni și fânețe permanente - pe terenuri accidentate - păşuni sărace, inclusiv lăstărişul, de obicei nefertilizate şi neîntrebuinţate:\n– păşuni cu randament scăzut situate în locuri accidentate şi la altitudini mari, care nu sunt cosite;\n – terenuri stâncoase, terenuri mlăştinoase, bărăganuri",null,null,null,null,null,null,null,null,null,null,null,null,null,null,null,null,null,null,null,null,null,null,null,null,null,null,null,null,92.33,null,null,null,null,null,null,null,null,null,0]
["B_4_1_1_1",null,null,null,null,null,null,null,null,null,"Fructe, pomi și arbuști - climă temperată:\n- mere, \n- pere\n- piersici și nectarine,\n- Alte fructe: vişine, cireșe, caise, prune, gutui.",null,null,null,null,null,null,null,null,null,null,null,null,null,null,null,null,null,null,null,null,null,null,null,null,null,null,null,null,2812.04,null,null,null,null,null,null,null,null,null,0]
["B_4_1_2",null,null,null,null,null,null,null,null,null,"Livezi de coacăz,  smochin, zmeur, muri, agrişe, cătină, afin, goji.",null,null,null,null,null,null,null,null,null,null,null,null,null,null,null,null,null,null,null,null,null,null,null,null,null,null,null,null,3958.34,null,null,null,null,null,null,null,null,null,0]
["B_4_1_3",null,null,null,null,null,null,null,null,null,"Fructe, pomi și arbuști: nuci, alune, ",null,null,null,null,null,null,null,null,null,null,null,null,null,null,null,null,null,null,null,null,null,null,null,null,null,null,null,null,1754.4,null,null,null,null,null,null,null,null,null,0]
["B_4_4_1",null,null,null,null,null,null,null,null,null,"Vii - vin nobil",null,null,null,null,null,null,null,null,null,null,null,null,null,null,null,null,null,null,null,null,null,null,null,null,null,null,null,null,1981.83,null,null,null,null,null,null,null,null,null,0]
["B_4_4_2",null,null,null,null,null,null,null,null,null,"Vii - alte vinuri",null,null,null,null,null,null,null,null,null,null,null,null,null,null,null,null,null,null,null,null,null,null,null,null,null,null,null,null,1889.96,null,null,null,null,null,null,null,null,null,0]
["B_4_4_3",null,null,null,null,null,null,null,null,null,"Vii – struguri de masă",null,null,null,null,null,null,null,null,null,null,null,null,null,null,null,null,null,null,null,null,null,null,null,null,null,null,null,null,2170.52,null,null,null,null,null,null,null,null,null,0]
["B_4_5",null,null,null,null,null,null,null,null,null,"Pepiniere",null,null,null,null,null,null,null,null,null,null,null,null,null,null,null,null,null,null,null,null,null,null,null,null,null,null,null,null,5614.25,null,null,null,null,null,null,null,null,null,0]
["B_4_6",null,null,null,null,null,null,null,null,null,"Alte culturi permanente: răchita, papura, bambus, salcie, brazi de craciun",null,null,null,null,null,null,null,null,null,null,null,null,null,null,null,null,null,null,null,null,null,null,null,null,null,null,null,null,487.35,null,null,null,null,null,null,null,null,null,0]
["B_6_1",null,null,null,null,null,null,null,null,null,"Ciupercării pe 100mp (Nr. recolte pe an - 4)\n",null,null,null,null,null,null,null,null,null,null,null,null,null,null,null,null,null,null,null,null,{"$f":"Q401*Z401/100","v":0},null,null,null,null,null,null,null,4456.78,null,null,null,null,null,null,null,null,null,{"$f":"AF400*AN400/4","v":0}]
[]
[null,null,null,null,null,null,null,null,null,null,"TOTAL VEGETAL",null,null,null,null,null,null,null,null,null,null,null,null,null,null,null,null,null,null,null,null,null,null,null,null,null,null,null,null,null,null,null,null,null,null,null,null,null,null,{"$f":"SUM(AX355:BJ401)","v":0}]
[]
["*  SE VA COMPLETA CU NUMĂRUL DE CICLURI PREVĂZUT A SE REALIZA ÎN CADRUL UNUI AN, CONFORM PLANULUI DE\nAFACERI.\n** SE VA COMPLETA CU SUPRAFAŢA CULTURII(MP) CU CIUPERCI; ÎN CAZUL ÎN CARE ÎN CADRUL CIUPERCĂRIEI SE\nUTILIZEAZĂ UN SISTEM DE CULTURĂ ÎN STELAJE, SE VA COMPLETA SUPRAFAŢA CULTURII(MP) FORMATĂ DIN SUPRAFAŢA\nUNUI STELAJ(MP)xNUMĂR DE STELAJE "]
["Coduri EUROSTAT",null,null,null,null,null,null,null,null,null,"Denumire specii animale",null,null,null,null,null,null,null,null,null,null,null,null,null,null,null,null,null,null,null,null,"Număr\ncapete",null,null,null,null,null,null,null,"SO 2013           euro/cap",null,null,null,null,null,null,null,null,null,"SO"]
[0,null,null,null,null,null,null,null,null,null,1,null,null,null,null,null,null,null,null,null,null,null,null,null,null,null,null,null,null,null,null,2,null,null,null,null,null,null,null,3,null,null,null,null,null,null,null,null,null,4]
["C_1",null,null,null,null,null,null,null,null,null,"Ecvidee",null,null,null,null,null,null,null,null,null,null,null,null,null,null,null,null,null,null,null,null,null,null,null,null,null,null,null,null,1404.31,null,null,null,null,null,null,null,null,null,{"$f":"AF407*AN407","v":0}]
["C_2_1",null,null,null,null,null,null,null,null,null,"Bovine sub 1 an - total",null,null,null,null,null,null,null,null,null,null,null,null,null,null,null,null,null,null,null,null,null,null,null,null,null,null,null,null,216.38,null,null,null,null,null,null,null,null,null,0]
["C_2_2",null,null,null,null,null,null,null,null,null,"Bovine sub 2 ani - masculi",null,null,null,null,null,null,null,null,null,null,null,null,null,null,null,null,null,null,null,null,null,null,null,null,null,null,null,null,344.4,null,null,null,null,null,null,null,null,null,0]
["C_2_3",null,null,null,null,null,null,null,null,null,"Bovine sub 2 ani - femele",null,null,null,null,null,null,null,null,null,null,null,null,null,null,null,null,null,null,null,null,null,null,null,null,null,null,null,null,341.49,null,null,null,null,null,null,null,null,null,0]
["C_2_4",null,null,null,null,null,null,null,null,null,"Bovine de 2 ani şi peste - masculi",null,null,null,null,null,null,null,null,null,null,null,null,null,null,null,null,null,null,null,null,null,null,null,null,null,null,null,null,817.88,null,null,null,null,null,null,null,null,null,0]
["C_2_5",null,null,null,null,null,null,null,null,null,"Bovine de 2 ani si peste - femele (juninci pentru îngrăşat, juninci pentru reproducţie)",null,null,null,null,null,null,null,null,null,null,null,null,null,null,null,null,null,null,null,null,null,null,null,null,null,null,null,null,801.38,null,null,null,null,null,null,null,null,null,0]
["C_2_6",null,null,null,null,null,null,null,null,null,"Vaci, bivolite pentru lapte",null,null,null,null,null,null,null,null,null,null,null,null,null,null,null,null,null,null,null,null,null,null,null,null,null,null,null,null,1200.46,null,null,null,null,null,null,null,null,null,0]
["C_2_99",null,null,null,null,null,null,null,null,null,"Bovine de 2 ani şi peste - alte vaci",null,null,null,null,null,null,null,null,null,null,null,null,null,null,null,null,null,null,null,null,null,null,null,null,null,null,null,null,515.85,null,null,null,null,null,null,null,null,null,0]
["C_3_1_1",null,null,null,null,null,null,null,null,null,"Oi - mioare montate - oi de un an sau mai mult destinate reproducerii, oile reformate care urmează să fete",null,null,null,null,null,null,null,null,null,null,null,null,null,null,null,null,null,null,null,null,null,null,null,null,null,null,null,null,54.91,null,null,null,null,null,null,null,null,null,{"$f":"AF415*AN415","v":0}]
["C_3_1_99",null,null,null,null,null,null,null,null,null,"Oi-alte oi : miei, berbeci, oi reformate - oi sterpe care urmează a fi îngrăşate în vederea sacrificării",null,null,null,null,null,null,null,null,null,null,null,null,null,null,null,null,null,null,null,null,null,null,null,null,null,null,null,null,26.72,null,null,null,null,null,null,null,null,null,0]
["C_3_2_1",null,null,null,null,null,null,null,null,null,"Capre – capre montate - capre montate femele destinate reproducerii, capre reformate care urmează să fete",null,null,null,null,null,null,null,null,null,null,null,null,null,null,null,null,null,null,null,null,null,null,null,null,null,null,null,null,112.98,null,null,null,null,null,null,null,null,null,0]
["C_3_2_99",null,null,null,null,null,null,null,null,null,"Capre – alte capre: iezi, ţapi, capre reformate destinate sacrificării",null,null,null,null,null,null,null,null,null,null,null,null,null,null,null,null,null,null,null,null,null,null,null,null,null,null,null,null,39.67,null,null,null,null,null,null,null,null,null,0]
["C_4_1_1",null,null,null,null,null,null,null,null,null,"Porcine - tineret porcin sub 20 kg",null,null,null,null,null,null,null,null,null,null,null,null,null,null,null,null,null,null,null,null,null,null,null,null,null,null,null,null,33.36,null,null,null,null,null,null,null,null,null,0]
["C_4_1_2",null,null,null,null,null,null,null,null,null,"Porcine - scroafe pentru reproducţie peste 50 kg",null,null,null,null,null,null,null,null,null,null,null,null,null,null,null,null,null,null,null,null,null,null,null,null,null,null,null,null,262.55,null,null,null,null,null,null,null,null,null,0]
["C_4_1_99",null,null,null,null,null,null,null,null,null,"Porcine - alte porcine: porci la îngrăşat, vieri, scroafe destinate sacrificării",null,null,null,null,null,null,null,null,null,null,null,null,null,null,null,null,null,null,null,null,null,null,null,null,null,null,null,null,388.08,null,null,null,null,null,null,null,null,null,0]
["C_5_1",null,null,null,null,null,null,null,null,null,"Pui pentru carne *",null,null,null,null,null,null,null,null,null,null,null,null,null,null,null,null,null,null,null,null,null,null,null,null,null,null,null,null,473.59,null,null,null,null,null,null,null,null,null,0]
["C_5_2",null,null,null,null,null,null,null,null,null,"Găini ouătoare *",null,null,null,null,null,null,null,null,null,null,null,null,null,null,null,null,null,null,null,null,null,null,null,null,null,null,null,null,2156,null,null,null,null,null,null,null,null,null,0]
["C_5_3_1",null,null,null,null,null,null,null,null,null,"\nCurcani şi curci *",null,null,null,null,null,null,null,null,null,null,null,null,null,null,null,null,null,null,null,null,null,null,null,null,null,null,null,null,4205.5600000000004,null,null,null,null,null,null,null,null,null,0]
["C_5_3_2",null,null,null,null,null,null,null,null,null,"Raţe *",null,null,null,null,null,null,null,null,null,null,null,null,null,null,null,null,null,null,null,null,null,null,null,null,null,null,null,null,2824.99,null,null,null,null,null,null,null,null,null,0]
["C_5_3_3",null,null,null,null,null,null,null,null,null,"Gâşte *",null,null,null,null,null,null,null,null,null,null,null,null,null,null,null,null,null,null,null,null,null,null,null,null,null,null,null,null,3602.66,null,null,null,null,null,null,null,null,null,0]
["C_5_3_4",null,null,null,null,null,null,null,null,null,"Struţi *",null,null,null,null,null,null,null,null,null,null,null,null,null,null,null,null,null,null,null,null,null,null,null,null,null,null,null,null,30083.5,null,null,null,null,null,null,null,null,null,0]
["C_5_3_99",null,null,null,null,null,null,null,null,null,"Alte păsări: bibilici, porumbei, potârnichi, fazani, prepeliţe *",null,null,null,null,null,null,null,null,null,null,null,null,null,null,null,null,null,null,null,null,null,null,null,null,null,null,null,null,900.34,null,null,null,null,null,null,null,null,null,0]
["C_6",null,null,null,null,null,null,null,null,null,"Iepuri (femele iepuri)",null,null,null,null,null,null,null,null,null,null,null,null,null,null,null,null,null,null,null,null,null,null,null,null,null,null,null,null,13.91,null,null,null,null,null,null,null,null,null,0]
["C_7",null,null,null,null,null,null,null,null,null,"Familii de albine",null,null,null,null,null,null,null,null,null,null,null,null,null,null,null,null,null,null,null,null,null,null,null,null,null,null,null,null,59.62,null,null,null,null,null,null,null,null,null,0]
[null,null,null,null,null,null,null,null,null,null,"* Valoarea SO se referă la 100 capete"]
[null,null,null,null,null,null,null,null,null,null,"TOTAL zootehnic",null,null,null,null,null,null,null,null,null,null,null,null,null,null,null,null,null,null,null,null,null,null,null,null,null,null,null,null,null,null,null,null,null,null,null,null,null,null,{"$f":"SUM(AX407:BJ430)","v":0}]
[null,null,null,null,null,null,null,null,null,null,"TOTAL GENERAL",null,null,null,null,null,null,null,null,null,null,null,null,null,null,null,null,null,null,null,null,null,null,null,null,null,null,null,null,null,null,null,null,null,null,null,null,null,null,{"$f":"SUM(AX402+AX432)","v":0}]
[]
["Valoare sprijin:*",null,null,null,null,null,null,null,null,null,null,null,null,null,null,null,null,null,null,null,null,null,null,null,null,null,null,null,null,null,null,null,null,null,null,null,"* Valoarea SO se referă la 100 capete"]
[]
["Curs EURO la data întocmirii Planului de Afaceri:",null,null,null,null,null,null,null,null,null,null,null,null,null,null,null,null,null,null,null,null,null,null,null,null,null,null,null,null,null,null,null,null,null,"Data întocmire Plan de Afaceri:"]
[]
[]
[null,"DEFINIŢIA ŞI PRINCIPIILE DE CALCULARE A PRODUCŢIILOR STANDARD\nProducţia corespunzătoare unei exploatații agricole reprezintă valoarea monetară a producţiei agricole brute la preţul de la poarta exploataţiei.\nProducţia standard reprezintă valoarea producţiei corespunzătoare situaţiei medii într-o regiune dată, pentru fiecare exploatație agricolă.\nProducţia este suma dintre valoarea produsului principal (produselor principale) şi cea a produsului secundar (produselor secundare).\n· De exemplu, producția principală a unei vaci de lapte este laptele; valorile vițeilor și ale cărnii de vacă sunt considerate producție secundară și sunt incluse în producția standard\n· De exemplu, producția principală la o cultură de grâu este grâul iar paiele considerate producție secundară, trebuie să fie evaluate în cazul în care sunt colectate pentru utilizarea la fermă sau pentru vânzare și sunt incluse în producția standard\nValoarea producției standard se calculează înmulţind producţia per unitate (ha, cap) cu preţul la poarta exploataţiei. TVA-ul, taxele pe produse şi plăţile directe nu sunt incluse.\nPerioada de producţie\nProducţiile standard corespund unei perioade de producţie de 12 luni (an calendaristic).\nPentru produsele vegetale şi animale pentru care perioada de producţie este mai mică de 12 luni sau depăşeşte această perioadă, se calculează o producţie standard corespunzătoare creşterii sau producţiei pe o perioadă de 12 luni.\nDate de bază şi perioada de referinţă\nProducţiile standard se determină pe baza informațiilor contabile agricole, informații care se colectează în statele membre UE pentru o perioadă de referinţă care cuprinde cinci ani succesivi. Perioada de referinţă este aceeaşi pentru toate statele membre şi este stabilită de CE. De exemplu, producţiile standard SO corespunzătoare perioadei de referinţă \"2010\" cuprind anii calendaristici 2008, 2009, 2010, 2011 şi 2012, iar producţiile standard SO corespunzătoare perioadei de referinţă \"2013\" cuprind anii calendaristici 2011, 2012, 2013, 2014 și 2015."]
[null,"Unităţi\n1. Unităţi de măsură:\n(a) Producţiile standard corespunzătoare culturilor se determină pe baza suprafeţei exprimate în hectare.\nExistă particularități pentru ciuperci, producţiile standard se determină pe baza producţiei brute pentru toate recoltele anuale succesive şi se exprimă per 100 m2 de suprafaţă cultivată. În vederea utilizării lor în contextul reţelei de informații contabile agricole, producţiile standard astfel determinate se împart la numărul de recolte anuale succesive, număr care este comunicat de fiecare stat membru. România a prevăzut un număr de 4 recolte anuale pentru ciuperci\npentru exploatațiile din anchetă.\n(b) Producţiile standard corespunzătoare efectivului de animale se determină pe cap de animal, cu excepţia păsărilor de curte, pentru care se exprimă în 100 de capete, şi a albinelor, pentru care se determină pe stup.\n2. Unităţi monetare şi rotunjiri\nDatele de bază pentru determinarea producţiilor standard, precum şi producţiile standard se stabilesc în euro. Pentru statele membre care nu au aderat la Uniunea Economică şi Monetară, producţiile standard se convertesc în euro, utilizându-se cursurile de schimb medii pentru perioada de referinţă iar CE comunică statelor membre cursurile de schimb.\nProducţiile standard pot fi rotunjite, dacă este cazul, la cel mai apropiat multiplu de 5 EUR.\n"]
[null,"DEFALCAREA PRODUCŢIILOR STANDARD\nÎn funcţie de caracteristicile culturii vegetale şi ale efectivului de animale\nProducţiile standard se determină pentru toate producțiile agricole care corespund rubricilor incluse în anchetele comunitare asupra structurii exploataţiilor agricole, în modul prevăzut în aceste anchete.\nDefalcare geografică\nProducţiile standard se determină pe baza unităţilor geografice compatibile cu unităţile geografice utilizate în anchetele comunitare asupra structurii\nexploataţiilor agricole (ASA) şi pentru reţeaua de informații contabile agricole (RICA). Zonele defavorizate sau montane nu sunt considerate o unitate\ngeografică.\nProducţia standard nu se determină pentru caracteristici care nu sunt prezente în regiunile în cauză."]
[null,"COLECTAREA DATELOR PENTRU DETERMINAREA PRODUCŢIILOR STANDARD\nDatele de bază pentru determinarea producţiilor standard se actualizează cel puţin de fiecare dată când se desfăşoară o anchetă asupra structurii exploataţiilor agricole sub formă de recensământ.\nÎn perioada dintre două anchete comunitare asupra structurii exploataţiilor agricole desfăşurate sub formă de recensământ, producţiile standard se actualizează de fiecare dată când are loc o anchetă asupra structurii exploataţiei.\nEXECUŢIA\nStatele membre sunt responsabile, în conformitate cu dispoziţiile legislației europene, de colectarea datelor de bază necesare pentru calcularea producţiilor standard, de calcularea acestora, de convertirea lor în euro, precum şi de colectarea datelor necesare pentru aplicarea metodei de actualizare, dacă este cazul."]
[]
[]
[null,"TRATAMENTUL CAZURILOR SPECIALE\nSe stabilesc regulile următoare pentru calcularea producţiilor standard pentru anumite tipuri de caracteristici:\nPârloage (terenuri scoase temporar din circuitul agricol) fără subvenţii\nProducţia standard corespunzătoare pârloagelor fără niciun fel de subvenţii se ia în considerare la calcularea producţiei standard totale a exploataţiei numai în cazul în care există alte producţii standard pozitive pe exploataţie.\nPârloage pentru care s-au acordat subvenţii, fără uz economic, şi păşuni permanente care nu mai sunt utilizate în producţie şi care sunt eligibile pentru plata subvenţiilor\nAvând în vedere că producţia de pe terenurile în sistem de ajutor fără uz economic este limitată la plăţile directe, producţiile standard ale acestor terenuri se consideră egale cu zero.\nGrădinile familiale\nAvând în vedere că produsele grădinilor familiale sunt în mod obişnuit destinate consumului propriu al exploatantului şi nu comercializării, producţiile standard ale acestora se consideră egale cu zero.\nAnimale\nPentru animale, caracteristicile sunt defalcate pe categorii de vârstă. Producţia corespunde valorii creşterii animalului pe perioada în care s-a încadrat într-o categorie. Cu alte cuvinte, producţia corespunde diferenţei dintre valoarea animalului atunci când iese dintr-o anumită categorie şi valoarea pe care a avut-o la intrarea în categoria respectivă (denumită şi valoare de înlocuire).\n1.Bovine sub un an, masculi şi femele\nProducţiile standard corespunzătoare bovinelor sub un an se iau în considerare la calcularea producţiei standard totale a exploataţiei numai în cazul în care, pe exploataţie, sunt mai multe bovine sub un an decât vaci. Se iau în considerare numai producţiile standard corespunzătoare surplusului de bovine sub un an."]
[null,"Pentru categoria bovine sub un an se întâlnesc două situaţii:\n· dacă în fermă se găsesc vaci de lapte atunci calculul dimensiunii economice se face prin însumarea producţiilor standard pentru vaci de lapte şi a producţiilor standard pentru viţeii sub 1 an al căror număr depăşeşte numărul vacilor de lapte;\n· dacă în fermă nu se găsesc vaci de lapte atunci se iau în considerare producțiile standard corespunzătoare viţeilor sub 1 an pentru numărul care există în acel moment în fermă\nExemplu de calcul:\nFerma deţine 10 vaci de lapte, 12 viţei sub un an, 2 tauri mai mari de doi ani, 3 viţele mai mari de 2 ani destinate sacrificării\nSO 2013 = 10 x 1200.46 + 2 x 216.38 + 2 x 817.88 + 3 x 801.38 = 16477.26 Euro\nBovinele pentru carne sunt cele destinate sacrificării: bovine sub an, bovine sub 2 ani (femele şi masculi), bovine de doi ani şi peste (femele şi masculi), alte bovine (tauri, boi, alte bovine reformate destinate sacrificării).\n- Din categoria C_2_1 ʺ Bovine sub 1an total ʺ fac parte viței pentru îngrășat (masculi și femele), de regulă, sacrificați la vârsta de aproximativ\nșase luni şi alte bovine sub 1 an având coeficienţii SO 2013 = 216.38 euro."]
[null,"- Din categoria C_2_2 ʺ Bovine sub 2 ani-masculi ʺ fac parte tăuraşi între un an şi doi ani având coeficienţii SO 2013 = 344,40 euro.\n- Din categoria C_2_3 ʺ Bovine sub 2 ani-femeleʺ fac parte juninci între un an şi doi ani cu excepţia bovinelor femele care au fătat deja, având coeficienţii SO 2013 = 341,49 euro.\n- Din categoria C_2_4 ʺ Bovine de doi ani şi peste-masculi ʺ fac parte tauri de la doi ani în sus având coeficienţii SO 2013 = 817,88 euro.\n- Din categoria C_2_5 ʺ Bovine de doi ani şi peste-femele ʺ fac parte juninci de reproducţie (bovine de doi ani şi mai mult care nu au fătat încă şi sunt destinate reproducerii) şi juninci pentru îngrăşat (bovine femele de doi ani şi mai mult destinate îngrăşării) având coeficienţii SO = 801,38 euro.\n- Din categoria C_2_6 ʺ Vaci pentru lapteʺ fac parte Bovine femele care au fătat (inclusiv cele mai mici de 2 ani), care sunt ținute exclusiv sau în principal pentru producția de lapte destinat consumului uman sau obținerii de produse lactate şi vaci de lapte pentru sacrificare (vaci de lapte reformate) după lactaţia finală având coeficienţii SO 2013 = 1200,46 euro.\n- Din categoria C_2_99 ʺ Bovine de doi ani şi peste-alte vaci ʺ fac parte bovine femele care au fătat (inclusiv cele mai mici de 2 ani), ținute exclusiv sau în principal pentru producția de viței și al căror lapte nu este utilizat pentru consumul uman sau obținerea de produse lactate, vaci pentru muncă, vaci pentru sacrificare (reformate) care nu sunt de lapte (îngrășate sau nu înaintea sacrificării) având coeficienţii SO = 551,85 euro.\nMenționăm că toate categoriile aferente bovinelor includ și categoriile corespunzătoare de bivoli și bivolițe."]
[null,"2.Alte ovine şi caprine\nProducţiile standard corespunzătoare altor ovine se iau în considerare la calcularea producţiei standard totale a exploataţiei numai în cazul în care, pe exploataţie, nu există nici o femelă ovină de reproducţie.\nProducţiile standard corespunzătoare altor caprine se iau în considerare la calcularea producţiei standard totale a exploataţiei numai în cazul în care, pe exploataţie, nu există nici o femelă caprină de reproducţie. Acest lucru se datorează faptului că mieii/iezii sunt consideraţi producţia principală a oilor/caprelor, valoarea acestora fiind inclusă în coeficientul standard output al oilor, respectiv caprelor.\nExemplu de calcul:\nFerma deţine 250 oi, 270 miei , 10 berbeci , 12 oi sterpe şi 25 iezi\nSO 2013= 250 x 54.91 + 270 x 26,72 + 10 x 26,72 + 12 x 26,72 + 25 x 39,67 = 22,521,49 Euro"]
[]
[]
[null,"3.Purcei\nProducţiile standard corespunzătoare purceilor se iau în considerare la calcularea producţiei standard totale a exploataţiei numai în cazul în care, pe exploataţie, nu există nici o scroafă de reproducţie. Acest lucru se datorează faptului că purceii sub 20 kg. sunt consideraţi producţia principală a scroafelor de reproducţie, valoarea acestora fiind inclusă în coeficientul standard output al scroafelor.\nExemplu de calcul:\nFerma deţine 12 scroafe, 40 purcei sub 20 kg, 35 porci pentru îngrăşat, 2 vieri\nSO 2013 = 12 x 262,55 + 40 x 33,36 + 35 x 388,08 + 2 x 388,08 = 18843,96 Euro\n4.Păsări\nFerma de păsări care îşi desfăşoară activitatea pe mai multe cicluri de producţie într-un an contabil se va dimensiona la depunerea cererii de finanţare cu efectivul de păsări existent.\nRICA calculează valoarea SO pe baza numărului mediu de păsări existent de-a lungul anului în fermă."]
[null,"5.Ciuperci\nExemplu de calcul:\nSera pentru cultivarea ciupercilor se va dimensiona astfel:\nPentru o suprafaţă de 200 mp, SO 2013 = 2 x 4456,78/4 cicluri = 2228,39 euro\nSuprafaţa totală cultivată = suprafaţa de bază x numărul de cicluri (pentru România s-au stabilit 4 cicluri).\nProvizoriu, cu caracter orientativ, s-au calculat următorii coeficienţi standard output:\nC_5_3_1 Curcani şi curci SO 2013 = 4205,56 euro/100 capete\nC_5_3_2 Raţe SO 2013 = 2824,99 euro/100 capete\nC_5_3_3 Gâşte SO 2013 = 3602,66 euro/100 capete\nC_5_3_4 Struţi SO 2013 = 30083,50 euro/100 capete\nC_5_3_99 Alte păsări: fazani, bibilici, potârnichi, prepeliţe, porumbei SO 2013 = 900,34 euro/100 capete\nB_4_6 Brazi de crăciun SO 2013 = 487,35 euro/ha\n"]
[null,"Furaje\nÎn cazul în care, pe exploataţie, nu există erbivore (ecvidee, bovine, ovine şi caprine), furajele (rădăcinoase furajere şi brasicacee, plante verzi, păşuni şi fâneţe) se consideră ca fiind destinate comercializării şi fac parte din producţia culturilor de câmp.\nÎn cazul în care, pe exploataţie, există erbivore, furajele se consideră a fi destinate hrănirii acestora şi fac parte din producţia corespunzătoare erbivorelor şi furajelor.\nCheltuielile de marketing și transport sunt considerate costuri si nu sunt deduse din prețul care se utilizează pentru calculul producției standard.\nNici o compensație de la o companie privată în caz de condiții meteorologice nefavorabile, sau de la stat de exemplu, în cazul problemelor de sănătate la animale nu trebuie să fie luate în considerare. Coeficientul SO trebuie să corespundă rezultatului așteptat în condiții \"normale\". În cazul în care într-un an în statul membru există o epidemie (cum ar fi limba albastră), acest an anormal poate fi exclus din calcul pentru produsele în cauză.\nLa calcularea SO, procesarea produselor agricole nu trebuie luată în considerare chiar dacă această activitate este strâns legată de producț?ie (lapte în unt, smântână, brânză), cu excepția vinului și uleiului de măsline. Prin urmare, în cazul în care într-o regiune laptele este transformat în brânză, în calcularea SO pentru vacile de lapte numai valoarea laptelui va fi luată în considerare și nu valoarea brânzei.\nPentru exploatații care au mai multe culturi, cum ar fi ”legume proaspete pepeni și căpșuni - în câmp deschis \" sau - ”Fructe din zone cu climă temperată”, coeficientul de SO corespunde mediei ponderate a SO - urilor producțiilor incluse în această categorie. Este la latitudinea statelor membre să decidă care producție trebuie să fie inclusă în calcul în funcție de semnificația acesteia.\nÎn cazul în care pozițiile sunt subdivizate în sub poziții Statele Membre pot da un singur coeficient regional pentru o poziție principală; în acest caz, coeficientul pentru poziția principală se utilizează și pentru sub pozițiile aferente ex. ”Legume proaspete, pepeni şi căpşuni - în câmp, Flori, Fructe, pomi şi arbuşti - climă temperată” etc.\nStatele membre nu sunt obligate să furnizeze coeficienți SO pentru următoarele caracteristici:\n- Altele suprafețe\n- Suprafețe Irigate\n- Culturi energetice (sunt incluse fiecare ca și cultură separata)\n- Subrubricile - Alte păsări și Alte animale"]
[null,"Regulamentele care stau la baza calculului SO sunt următoarele:\n· Regulamentul de punere în aplicare (UE) NR. 1320/2013 AL COMISIEI din 3 decembrie 2013 de rectificare a Regulamentului de punere în aplicare (UE) nr. 385/2012 al Comisiei privind fișa exploatației care urmează a fi utilizată în scopul determinării veniturilor exploatațiilor agricole și analizării activității economice a acestor exploatații;\n· Regulamentul de punere în aplicare (UE) 220/ 3 februarie 2015 al Comisiei de stabilire a normelor de aplicare a Regulamentului (CE) nr. 1217/2009 al Consiliului privind crearea unei rețele de colectare de informații contabile privind veniturile și activitatea economică a exploatațiilor agricole în Uniunea Europeană;\n· Documentul Comitetului Comunitar RICA-RICC 1680 v 1. 3/2015, Definiții chestionar RICA\n· Documentul Comitetului Comunitar RICA-RICC 1500 Rev. 3/2010, Manual de tipologie\n· Documentul EUROSTAT CPSA/SB/714/2013 - Formatul de transmitere a SO 2010\n· Regulamentul (UE) 2015/1391 al comisiei din 13 august 2015 de modificare a Regulamentului (CE) nr. 1200/2009 de punere în aplicare a Regulamentului (CE) nr. 1166/2008 al Parlamentului European și al Consiliului privind anchetele structurale în agricultură și ancheta privind metodele de producție agricolă, în ceea ce privește coeficienții de unitate vită mare și definițiile caracteristicilor."]
[]
["F. DECLARAŢIE PE PROPRIA RĂSPUNDERE A SOLICITANTULUI"]
["Prin această declaraţie solicitantul"]
[]
["care solicită asistență financiară nerambursabilă prin programul FEADR pentru proiectul intitulat"]
[]
[]
["1.",null,null,"Declar pe propria răspundere că îndeplinesc condiţiile minime de acordare a sprijinului prevazute în fişa măsurii\ndin Ghidul Solicitantului şi mă angajez să le respect pe o perioadă egală cu perioada de implementare şi\nmonitorizare a proiectelor începând cu anul depunerii cererii de finanţare."]
["2.",null,null,"Declar pe propria răspundere că toate informaţiile din prezenta cerere de finanţare şi din documentele anexate\nsunt corecte şi mă angajez să respect condiţiile cerute în reglementările referitoare la prezentul program şi pe\ncele legate de proiectul anexat şi să furnizez periodic, la cerere, documente justificative necesare."]
["3.",null,null,"Declar pe propria răspundere că orice modificări aduse dreptului de proprietate sau de folosinţă vor fi notificate\nAFIR în termen de trei zile de la data încheierii lor. De asemenea, mă angajez, că pe perioada de implementare a\nproiectului nu voi reduce dimensiunea economică prevăzută la depunerea cererii de finanţare a exploataţiei\nagricole pe durata de execuţie a proiectului cu mai mult de 15%, cu excepţia pepinierelor, unde marja de\nfluctuaţie de maximum 15% a dimensiunii economice poate fi mai mare, fără a reduce dimensiunea SO sub limita\ncare defineşte mărimea exploataţiei pentru care proiectul este selectat şi aprobat."]
["  4.   Declar că nu sunt într-unul din urmatoarele cazuri:"]
[null,null,null,"Acuzat din cauza unei greseli privind conduita profesională având ca soluţie finală res judicata (împotriva căreia nici un apel nu este posibil)"]
[null,null,null,"Vinovat de grave deficienţe de conduită profesională dovedite prin orice mijloace pe care Agenţia le poate justifica."]
[null,null,null,"Vinovat de faptul că nu am prezentat informaţiile cerute de Autoritatea Contractantă ca o condiţie de participare la\ncontractare."]
[null,null,null,"Încălcarea prevederilor contractuale prin care nu mi-am îndeplinit obligaţiile contractuale în legătură cu un alt contract cu AFIR sau alte contracte finanţate din fonduri comunitare"]
[null,null,null,"Încercarea de a obţine informaţii confidenţiale sau de influenţare a AFIR în timpul procesului de evaluare a proiectului şi nu voi face presiuni la adresa evaluatorului."]
["5.",null,null,"Declar pe propria răspundere că mă angajez ca toate obiectivele prevăzute în Planul de afaceri să fie realizate cu\nrespectarea legislaţiei naţionale în vigoare şi după caz, să obţin Autorizaţia de funcţionare în acord cu aceasta,\npână la verificarea conformităţii Planului de Afaceri la tranşa a doua."]
["6.",null,null,"Declar pe propria răspundere că în cazul în care nu respect oricare din punctele prevăzute în declarative\nproiectul să devină neeligibil în baza criteriului \"Eligibilitatea solicitantului\" sau contractul să fie reziliat."]
["7.",null,null,"Declar pe propria răspundere că mă instalez pentru prima dată în calitate de conducător (şef) al exploataţiei\nagricole şi că nu deţin în proprietate/folosinţă alte terenuri, animale, păsări şi familii de albine în afara celor\ndeclarate în planul de afaceri."]
["8.",null,null,"Declar că, în cazul în care, exploataţia zootehnică pe care o deţin va fi selectată şi primeşte sprijin financiar\nnerambursabil, să o înregistrez la ANSVSA, ca exploataţie comercială de tip A, până la semnarea contractului de\nFinanţare."]
["9.",null,null,"Declar pe propria răspundere că îmi voi stabili domiciliul în UAT-ul în care este înregistrată exploataţia, în\nmaximum de 9 luni de la data semnării contractului de finanţare."]
["10.",null,null,"Declar pe propria răspundere că sediul social al solicitantului (persoană juridică) va fi localizat într-un UAT în\ncare este înregistrată exploataţia."]
["11.",null,null,"Declar pe propria răspundere că în cazul în care mă voi angaja ulterior depunerii Cererii de finanţare voi respecta\ncondiţia privind deţinerea unui loc de muncă în acelaşi UAT sau zona limitrofă a UAT în care este înregistrată\nexploataţia în maximum de 9 luni de la data semnării contractului de finanţare."]
["12.",null,null,null,null,"Declar pe propria răspundere că voi dobândi competențe profesionale adecvate într-o perioadă de grație de\nmaximum 33 de luni de la data adoptării deciziei individuale de acordare a ajutorului, dar nu mai mult de ultima\ntranşă de plată."]
["13.",null,null,"Declar pe propria răspundere că în termen de 18 luni de la data instalării voi deveni fermier activ."]
["14.",null,null,"Declar pe proprie răspundere că voi îndeplini criteriului de selecţie privind obţinerea documentului care să\ncertifice utilizarea resurselor genetice autohtone până la momentul acordării celei de-a doua tranşe de sprijin"]
["15.",null,null,"Declar pe propria răspundere că în situaţia în care desfăşor altă activitate decât cea agricolă, în cadrul unei\nforme de organizare înregistrate la ONRC, de mai mult de 24 luni înaintea depunerii Cererii de finanțare la AFIR,\nmă angajez să respect condiţia privind microîntreprinderile/întreprinderile mici – ţinând cont de întreprinderi\npartenere/legate, număr de salariaţi, cifră de afaceri."]
["16.",null,null,"Declar pe propria răspundere că în vederea depunerii Dosarului Cererii de Plată - tranșa a doua, voi înștiința\nAFIR pentru efectuarea vizitei pe teren, potrivit prevederilor din cadrul Ghidului Solicitantului"]
["17.",null,null,"Declar pe propria răspundere că nu am înscrisuri care privesc sancțiuni economico-financiare în cazierul judiciar\npe care mă oblig să îl depun la încheierea contractului de finanţare . Prin prezenta îmi exprim consimțământul ca\nAFIR să solicite instituțiilor abilitate conform legii, extrasul de pe cazierul judiciar privind situația mea.\n(Până la reglementarea posibilităţii aplicării de către experţii evaluatori AFIR a normelor metodologice aferente\nLegii nr. 290/2004 privind cazierul judiciar, cu modificările şi completările ulterioare, solicitantul are obligaţia\ndepunerii documentului justificativ mai sus enunţat.)"]
["18.",null,null,"Sunt de acord ca AFIR să consulte şi să prelucreze, prin operaţiunile prevăzute de legislaţia în vigoare în vederea\ndesfăşurării activităţii specifice, datele mele cu caracter personal, furnizate AFIR."]
[]
["Semnătura reprezentant legal şi ştampila",null,null,null,null,null,null,null,null,null,null,null,null,null,null,null,null,null,null,null,null,null,null,null,null,null,null,null,null,null,null,null,null,null,null,null,null,null,null,null,null,null," Data:"]
[]
[]
[]
["Factori de risc"]
["I1. Dimensiunea economică a exploataţiei agricole",null,null,null,null,null,null,null,null,null,null,null,null,null,null,null,null,null,null,null,null,null,null,null,null,null,null,null,null,null,null,null,null,null,null,null,null,null,null,null,null,null,"Factor\nîndeplinit",null,null,null,null,null,null,null,null,null,"Punctaj"]
["•",null,"8 000 SO - 25 000 SO",null,null,null,null,null,null,null,null,null,null,null,null,null,null,null,null,null,null,null,null,null,null,null,null,null,null,null,null,null,null,null,null,null,null,null,null,null,null,null,null,null,null,null,null,null,null,null,null,null,5]
["•",null,"25 001 SO - 29 999 SO",null,null,null,null,null,null,null,null,null,null,null,null,null,null,null,null,null,null,null,null,null,null,null,null,null,null,null,null,null,null,null,null,null,null,null,null,null,null,null,null,null,null,null,null,null,null,null,null,null,3]
["•",null,"30 000 SO - 50 000 SO",null,null,null,null,null,null,null,null,null,null,null,null,null,null,null,null,null,null,null,null,null,null,null,null,null,null,null,null,null,null,null,null,null,null,null,null,null,null,null,null,null,null,null,null,null,null,null,null,null,1]
[]
["I2. Pregătire profesionala a solicitantului",null,null,null,null,null,null,null,null,null,null,null,null,null,null,null,null,null,null,null,null,null,null,null,null,null,null,null,null,null,null,null,null,null,null,null,null,null,null,null,null,null,"Factor\nîndeplinit",null,null,null,null,null,null,null,null,null,"Punctaj"]
["•",null,"Cu pregătire profesională minimă",null,null,null,null,null,null,null,null,null,null,null,null,null,null,null,null,null,null,null,null,null,null,null,null,null,null,null,null,null,null,null,null,null,null,null,null,null,null,null,null,null,null,null,null,null,null,null,null,null,5]
["•",null,"Cu studii medii în domeniu",null,null,null,null,null,null,null,null,null,null,null,null,null,null,null,null,null,null,null,null,null,null,null,null,null,null,null,null,null,null,null,null,null,null,null,null,null,null,null,null,null,null,null,null,null,null,null,null,null,3]
["•",null,"Cu studii superioare în domeniu",null,null,null,null,null,null,null,null,null,null,null,null,null,null,null,null,null,null,null,null,null,null,null,null,null,null,null,null,null,null,null,null,null,null,null,null,null,null,null,null,null,null,null,null,null,null,null,null,null,1]
[]
["I3. Gradul de dotare al exploatației conform planului de afaceri",null,null,null,null,null,null,null,null,null,null,null,null,null,null,null,null,null,null,null,null,null,null,null,null,null,null,null,null,null,null,null,null,null,null,null,null,null,null,null,null,null,"Factor\nîndeplinit",null,null,null,null,null,null,null,null,null,"Punctaj"]
["•",null,"Nu deține baze de producție",null,null,null,null,null,null,null,null,null,null,null,null,null,null,null,null,null,null,null,null,null,null,null,null,null,null,null,null,null,null,null,null,null,null,null,null,null,null,null,null,null,null,null,null,null,null,null,null,null,5]
["•",null,"Propune achiziții pentru realizarea bazei de producție",null,null,null,null,null,null,null,null,null,null,null,null,null,null,null,null,null,null,null,null,null,null,null,null,null,null,null,null,null,null,null,null,null,null,null,null,null,null,null,null,null,null,null,null,null,null,null,null,null,3]
["•",null,"Deține baze de producție specifice activității",null,null,null,null,null,null,null,null,null,null,null,null,null,null,null,null,null,null,null,null,null,null,null,null,null,null,null,null,null,null,null,null,null,null,null,null,null,null,null,null,null,null,null,null,null,null,null,null,null,1]
["TOTAL RISC"]
[]
[]
[]
[]
[]
["Anexa INDICATORI DE MONITORIZARE"]
["\nMăsura M2/2B - Ajutor acordat tinerilor fermieri în vederea instalării acestora ca șef de fermă"]
[]
["1. Cod CAEN"]
["2. Tipul beneficiarului",null,null,null,null,null,null,null,null,null,null,null,null,null,null,null,null,null,"Solicitanți înființați în baza OUG 44/ 2008",null,null,null,null,null,null,null,null,null,null,null,null,"Bărbaţi"]
[null,null,null,null,null,null,null,null,null,null,null,null,null,null,null,null,null,null,null,null,null,null,null,null,null,null,null,null,null,null,null,"Femei"]
[null,null,null,null,null,null,null,null,null,null,null,null,null,null,null,null,null,null,"Persoană juridică"]
["3. Tipul de zonă",null,null,null,null,null,null,null,null,null,null,null,null,null,null,null,null,null,"Zonă normală"]
[null,null,null,null,null,null,null,null,null,null,null,null,null,null,null,null,null,null,"Zonă montană"]
[null,null,null,null,null,null,null,null,null,null,null,null,null,null,null,null,null,null,"Zonă constrângeri specifice"]
[null,null,null,null,null,null,null,null,null,null,null,null,null,null,null,null,null,null,"Zonă constrângeri semnificative"]
["4. Tipul producţiei",null,null,null,null,null,null,null,null,null,null,null,null,null,null,null,null,null,"Ecologică"]
[null,null,null,null,null,null,null,null,null,null,null,null,null,null,null,null,null,null,"Convenţională"]
["5. Suprafaţa exploataţiei agricole sprijinite (Ha)"]
["6. Dimensiunea economică a exploataţiei(intre 8.000 și 50.000 Euro - valoare Producţie Standard)"]
[null,null,null,null,null,null,null,null,null,null,null,null,null,null,null,null,null,null,"Culturi de câmp"]
[null,null,null,null,null,null,null,null,null,null,null,null,null,null,null,null,null,null,"Horticultură"]
[null,null,null,null,null,null,null,null,null,null,null,null,null,null,null,null,null,null,"Viticultură"]
[null,null,null,null,null,null,null,null,null,null,null,null,null,null,null,null,null,null,"Culturi permanente (altele decât viticultura)"]
["7. Tip ramură agricolă",null,null,null,null,null,null,null,null,null,null,null,null,null,null,null,null,null,"Creștere bovine pentru carne"]
[null,null,null,null,null,null,null,null,null,null,null,null,null,null,null,null,null,null,"Creștere bovine pentru lapte"]
[null,null,null,null,null,null,null,null,null,null,null,null,null,null,null,null,null,null,"Creștere ovine și caprine"]
[null,null,null,null,null,null,null,null,null,null,null,null,null,null,null,null,null,null,"Porcine"]
[null,null,null,null,null,null,null,null,null,null,null,null,null,null,null,null,null,null,"Păsări de curte"]
[null,null,null,null,null,null,null,null,null,null,null,null,null,null,null,null,null,null,"Mixte - culturi mixte"]
[null,null,null,null,null,null,null,null,null,null,null,null,null,null,null,null,null,null,"Mixte - animale mixte"]
[null,null,null,null,null,null,null,null,null,null,null,null,null,null,null,null,null,null,"Mixte - culturi și animale cu excepția albinelor"]
[null,null,null,null,null,null,null,null,null,null,null,null,null,null,null,null,null,null,"Albine"]
[null,null,null,null,null,null,null,null,null,null,null,null,null,null,null,null,null,null,"Altele"]
["8. Contribuie la Prioritatea 1",null,null,null,null,null,null,null,null,null,null,null,null,null,null,null,null,null,"M01 - Transfer de cunoştinţe şi acţiuni de informare"]
[null,null,null,null,null,null,null,null,null,null,null,null,null,null,null,null,null,null,"M02 - Servicii de consiliere"]
[null,null,null,null,null,null,null,null,null,null,null,null,null,null,null,null,null,null,"M16 - Cooperare"]
[]
["*Pentru indicatorii de tip numeric care nu fac obiectul investiției se va completa valoarea zero."]
["Indic. nr. 1 - reprezintă codul CAEN pentru investiţia vizată prin proiect\nIndic. nr. 2, 3, 4, 7 - se va bifa doar o singură categorie/ categoria majoritară\nIndic. nr. 5 - se completează suprafaţa (Ha) exploataţiei agricole sprijinite prin proiect\nIndic. nr. 6 - se va completa dimensiunea economică a exploatatiei\nIndic. nr. 8 - se va completa din momentul demarării M01, M02, respectiv M16"]

{"sheet":"Asociati","index":1,"n_rows":25,"n_cols":52,"rows_kept":25,"cut":false,"hidden":false,"merged":[[23,51,23,58],[24,28,25,35],[24,37,25,48],[24,51,25,58],[19,3,19,16],[19,24,19,49],[23,4,23,15],[23,18,23,20],[23,21,23,26],[23,28,23,35],[23,37,23,48],[24,4,24,6],[24,7,24,9],[24,10,24,15],[24,18,25,20],[24,21,25,26],[25,4,25,6],[25,7,25,9],[25,10,25,15],[18,24,18,49],[11,37,12,48],[16,19,16,49],[18,3,18,10],[11,51,12,58],[12,4,12,6],[12,7,12,9],[12,10,12,15],[11,4,11,6],[11,7,11,9],[11,10,11,15],[11,18,12,20],[11,21,12,26],[11,28,12,35],[10,51,10,58],[0,0,0,60],[1,0,1,60],[5,3,5,10],[5,24,5,49],[6,3,6,16],[6,24,6,49],[10,4,10,15],[10,18,10,20],[10,21,10,26],[10,28,10,35],[10,37,10,48],[3,19,3,49]]}
["B INFORMAŢII PRIVIND SOLICITANTUL"]
[]
[null,"Asociați"]
[null,null,null,"Nume şi prenume asociat:"]
[]
[null,null,null,"Data naşterii",null,null,null,null,null,null,null,null,null,null,null,null,null,null,null,null,null,null,null,null,"Cod numeric personal"]
[]
[]
[]
[]
[null,null,null,null,"Act de identitate",null,null,null,null,null,null,null,null,null,null,null,null,null,"Seria",null,null,"Nr.",null,null,null,null,null,null,"Eliberat la data de",null,null,null,null,null,null,null,null,"de:",null,null,null,null,null,null,null,null,null,null,null,null,null,"Valabil până la:"]
[null,null,null,null,"B.I.",null,null,"C.I.",null,null,"Paşaport"]
[]
[]
[]
[]
[null,null,null,"Nume şi prenume asociat:"]
[]
[null,null,null,"Data naşterii",null,null,null,null,null,null,null,null,null,null,null,null,null,null,null,null,null,null,null,null,"Cod numeric personal"]
[]
[]
[]
[]
[null,null,null,null,"Act de identitate",null,null,null,null,null,null,null,null,null,null,null,null,null,"Seria",null,null,"Nr.",null,null,null,null,null,null,"Eliberat la data de",null,null,null,null,null,null,null,null,"de:",null,null,null,null,null,null,null,null,null,null,null,null,null,"Valabil până la:"]
[null,null,null,null,"B.I.",null,null,"C.I.",null,null,"Paşaport"]